{"text_format":"1","workbook":"xlsx","n_sheets":7,"sheets":["CoverPage","Instructions & Checklist","Formula Allocation Application","302(c)(4) Plan","Urban County","Application Support","DATA"],"not_rendered":{"charts":0,"images":2,"macros":1,"external_links":0,"defined_names":238,"comments":2,"pivot_tables":0},"unopened":[],"bounds":{"document_bytes":16777216,"sheet_cells":100000,"rows_first":2000,"rows_last":500,"rows_between":2000,"halvings":0,"cell_chars":16384,"cell_head_chars":4096},"cells_cut":0,"cells_raw":0,"read":"whole","date_system":"1900"}

{"sheet":"CoverPage","index":0,"n_rows":42,"n_cols":4,"rows_kept":42,"cut":false,"hidden":false,"merged":[[32,0,32,4],[41,0,41,4],[23,0,23,4],[25,0,25,4],[26,0,26,4],[28,0,28,4],[29,0,29,4],[31,0,31,4],[22,0,22,4],[0,0,0,4],[2,0,2,4],[4,0,4,4],[19,0,19,4],[20,0,20,4]]}
["Permanent Local Housing Allocation (PLHA) Formula Allocation "]
[]
["Notice of Funding Availability (NOFA) October 15, 2024"]
[]
["2024 Application for 5-Year Plan Amendment"]
[]
[]
[]
[]
[]
[]
[]
[]
[]
[]
[]
[]
[]
[]
["State of California"]
["Gavin Newsom, Governor"]
[]
["Business, Consumer Services and Housing Agency"]
["Tomiquia Moss, Secretary"]
[]
["Department of Housing and Community Development"]
["Gustavo Velasquez, Director"]
[]
["Program Design and Implementation, PLHA Program"]
["651 Bannon Street, Sacramento, CA 95811"]
[]
["Email: PLHA@hcd.ca.gov"]
["Website: Permanent Local Housing Allocation Program (PLHA)"]
[]
[null,"Allocation Years","New & Streamlined Submission Deadline","5-Year Plan Amendment Submission Deadline"]
[null,"Year 1 (2019)","n/a","n/a"]
[null,"Year 2 (2020)","n/a","n/a"]
[null,"Year 3 (2021)","2025-02-28","2025-06-30"]
[null,"Year 4 (2022)","2026-02-28","2026-06-30"]
[null,"Year 5 (2023)","2027-02-28","2027-06-30"]
[]
["End of Document"]

{"sheet":"Instructions & Checklist","index":1,"n_rows":26,"n_cols":36,"rows_kept":26,"cut":false,"hidden":false,"merged":[[23,0,23,37],[25,0,25,37],[21,0,21,2],[21,3,21,10],[21,11,21,34],[21,35,21,37],[22,0,22,2],[22,3,22,10],[22,11,22,34],[22,35,22,37],[19,0,19,2],[19,3,19,10],[19,11,19,34],[19,35,19,37],[20,0,20,2],[20,3,20,10],[20,11,20,34],[20,35,20,37],[17,0,17,2],[17,3,17,10],[17,11,17,34],[17,35,17,37],[18,0,18,2],[18,3,18,10],[18,11,18,34],[18,35,18,37],[16,0,16,2],[16,3,16,10],[16,11,16,34],[16,35,16,37],[5,0,5,37],[6,0,6,37],[7,0,7,37],[8,0,8,37],[9,0,9,37],[10,0,10,37],[11,0,11,37],[12,0,12,37],[13,0,13,37],[14,0,14,37],[15,0,15,37],[4,0,4,37],[0,0,0,34],[0,35,0,37],[1,0,1,37],[2,0,2,37],[3,0,3,37]]}
["Instructions",null,null,null,null,null,null,null,null,null,null,null,null,null,null,null,null,null,null,null,null,null,null,null,null,null,null,null,null,null,null,null,null,null,null,"Rev. 10/28/24"]
["When opening this file, a yellow banner at the top may appear with a button that says \"Enable Content\". It is essential that you click this box so that the macros are enabled. Enabling macros is necessary for full worksheet functionality. Macros do not work with Microsoft's Excel version for Apple Mac.  "]
["Applications must be submitted electronically to the Department’s HCD Portal Sign In website. To receive an award of CY 2021 funds, applicants are required to submit an application and demonstrate a fully compliant Housing Element and submittal of the applicable Annual Progress Report(s) no later than February 28, 2025. All CY 2021 funds must be awarded by June 30, 2025 or they will revert to the Housing Rehabilitation Loan Fund per statute."]
["This NOFA will remain open to eligible applicants through June 30, 2027."]
["Applications must be on the Department’s forms and cannot be altered or modified by the Applicant. Excel forms must be in Excel format and 'save as' .xls or .xlsx.  Do not 'save as' .xlsm or .pdf format.  For application errors please fill out the Application Support worksheet and email the entire workbook to Application Support for application errors at PLHA@hcd.ca.gov."]
["General Instructions (Additional instructions and guidance are given throughout the Formula Allocation Application in \"red\" text and in cell comments. "]
["Guideline references are made with \"§\" and the corresponding guideline section number. "]
["\"Yellow\" cells are for Sponsor input. Failure to provide the required attachments and documentation may disqualify your application from consideration.  An Applicant must submit a complete application and other documents consistent with the deadlines stated in this NOFA.  Applications submitted in response to this NOFA must meet the threshold requirements set forth in this section and in PLHA Guidelines Section 302."]
["Required attachments are indicated in \"orange\" throughout the Streamline Application. Failure to provide the required attachments and documentation may disqualify your application from consideration. Electronically attached files must use the naming convention in the PLHA Application. For Example: \"App1 Tin\" or \"Reuse Plan\"."]
["Threshold items are indicated in \"blue\" cells."]
["\"Red\" shaded cells indicate the Sponsor has failed to meet a requirement of the program. Cells in the worksheet shaded in \"red\" indicate that the Applicant has failed to meet the minimum required. "]
["Sponsor must complete the following worksheets in the PLHA Formula Allocation Application. "]
["Formula Allocation Application"]
["Urban County"]
[]
["Checklist"]
["Threshold Requirement",null,null,"Electronic File Name",null,null,null,null,null,null,null,"Document Description",null,null,null,null,null,null,null,null,null,null,null,null,null,null,null,null,null,null,null,null,null,null,null,"Included?"]
["X",null,null,"Application and Adopting the PLHA Plan (2021-2023 Allocations) Reso",null,null,null,null,null,null,null,"Pursuant to section 302(c)(4) of the Guidelines, Applicant’s PLHA Plan for 2021-2023 allocations is attached to this resolution, and Applicant certifies compliance with all public notice, comment, and hearing requirements in accordance with the Guidelines."]
["X",null,null,"App1 TIN",null,null,null,null,null,null,null,"Provide a signed Gov't TIN Form"]
["X",null,null,"Applicant Delegation Agreement",null,null,null,null,null,null,null,"Legally binding agreement between Delegating and Administering Local Governments."]
["X",null,null,"Plan Adoption Reso",null,null,null,null,null,null,null,"§302(c)(4)(D) Evidence that the Plan was authorized and adopted by resolution by the Local jurisdiction and that the public had an adequate opportunity to review and comment on its content. \nPLHA webpage for Plan Adoption Resolution Document, located under our Forms tab."]
["X",null,null,"Reuse Plan",null,null,null,null,null,null,null,"Program Income Reuse Plan describing how repaid loans or accrued interest will be used for eligible activities in Section 301."]
["X",null,null,"Executed Application",null,null,null,null,null,null,null,"Provide a copy of the signed application. Signature can be typed into the Excel workbook, PDF with Docusigned signature or PDF with wet ink signature in blue ink preferred."]
["Disclosure of Application (California Public Records Act Statutes of 1968 Chapter 1473): Information provided in the application will become a public record available for review by the public, pursuant to the California Public Records Act Statutes of 1968 Chapter 1473. As such, any materials provided will be disclosable to any person making a request under this Act. The Department cautions Applicants to use discretion in providing information not specifically requested, including but not limited to, bank accounts, personal phone numbers and home addresses. By providing this information to the Department, the Applicant is waiving any claim of confidentiality and consents to the disclosure of submitted material upon request.\""]
[]
["End of Document"]

{"sheet":"Formula Allocation Application","index":2,"n_rows":40,"n_cols":37,"rows_kept":40,"cut":false,"hidden":false,"merged":[[26,0,26,34],[26,35,26,37],[27,0,27,34],[27,35,27,37],[28,0,28,34],[28,35,28,37],[23,0,23,34],[23,35,23,37],[24,0,24,34],[24,35,24,37],[25,0,25,34],[25,35,25,37],[32,0,32,34],[32,35,32,37],[33,0,33,34],[33,35,33,37],[29,0,29,34],[29,35,29,37],[30,0,30,34],[30,35,30,37],[31,0,31,34],[31,35,31,37],[20,0,20,2],[20,3,20,10],[20,11,20,29],[20,30,20,35],[20,36,20,37],[21,0,21,2],[21,3,21,10],[21,11,21,29],[21,30,21,35],[21,36,21,37],[19,0,19,2],[19,3,19,10],[19,11,19,29],[19,30,19,31],[19,32,19,35],[19,36,19,37],[16,31,16,33],[16,34,16,37],[17,0,17,35],[17,36,17,37],[18,0,18,25],[18,26,18,32],[18,33,18,35],[18,36,18,37],[16,0,16,2],[16,3,16,16],[16,17,16,18],[16,19,16,26],[16,27,16,28],[16,29,16,30],[14,31,14,33],[14,34,14,37],[15,0,15,3],[15,4,15,8],[15,9,15,10],[15,11,15,16],[15,17,15,20],[15,21,15,28],[15,29,15,32],[15,33,15,37],[14,0,14,2],[14,3,14,16],[14,17,14,18],[14,19,14,26],[14,27,14,28],[14,29,14,30],[12,20,12,21],[12,22,12,37],[13,0,13,3],[13,4,13,8],[13,9,13,10],[13,11,13,16],[13,17,13,20],[13,21,13,30],[13,31,13,33],[13,34,13,37],[12,0,12,1],[12,2,12,8],[12,9,12,10],[12,11,12,13],[12,14,12,15],[12,16,12,19],[4,36,4,37],[7,0,7,37],[8,0,8,37],[9,0,9,37],[10,0,10,3],[10,4,10,37],[11,0,11,2],[11,3,11,37],[6,0,6,11],[6,12,6,15],[6,16,6,26],[6,27,6,30],[6,31,6,35],[6,36,6,37],[22,0,22,37],[3,0,3,11],[3,12,3,15],[3,16,3,26],[3,27,3,30],[3,31,3,35],[3,36,3,37],[0,0,0,34],[0,35,0,37],[1,0,1,6],[1,7,1,37],[2,0,2,21],[2,22,2,37],[5,0,5,11],[5,12,5,15],[5,16,5,26],[5,27,5,30],[5,31,5,35],[5,36,5,37],[4,0,4,11],[4,12,4,15],[4,16,4,26],[4,27,4,30],[4,31,4,35],[39,0,39,37],[34,0,34,37],[35,0,35,37],[36,0,36,10],[36,12,36,18],[36,20,36,34],[36,36,36,37],[37,0,37,10],[37,12,37,18],[37,20,37,34],[37,36,37,37]]}
["PLHA Formula - Amendment for years 2021, 2022, 2023\n",null,null,null,null,null,null,null,null,null,null,null,null,null,null,null,null,null,null,null,null,null,null,null,null,null,null,null,null,null,null,null,null,null,null,{"$f":"'Instructions & Checklist'!AJ1","v":"Rev. 10/28/24"}]
["Eligible Applicant Type: "]
["Local Government Recipient of PLHA Formula Allocation: "]
["2020 PLHA Formula Allocation Amount:",null,null,null,null,null,null,null,null,null,null,null,"n/a",null,null,null,"2019 Allowable Local Admin (5%):",null,null,null,null,null,null,null,null,null,null,"n/a",null,null,null,"Admin requested?"]
["2021 PLHA Formula Allocation Amount:",null,null,null,null,null,null,null,null,null,null,null,"n/a",null,null,null,"2020 Allowable Local Admin (5%):",null,null,null,null,null,null,null,null,null,null,"n/a",null,null,null,"Admin requested?"]
["2022 PLHA Formula Allocation Amount:",null,null,null,null,null,null,null,null,null,null,null,"n/a",null,null,null,"2021 Allowable Local Admin (5%):",null,null,null,null,null,null,null,null,null,null,"n/a",null,null,null,"Admin requested?"]
["2023 PLHA Formula Allocation Amount:",null,null,null,null,null,null,null,null,null,null,null,"n/a",null,null,null,"2022 Allowable Local Admin (5%):",null,null,null,null,null,null,null,null,null,null,"n/a",null,null,null,"Admin requested?"]
["Instructions: If the Local Government Recipient of the PLHA Formula Allocation delegated its PLHA formula allocation to a Local Housing Trust Fund or to another Local Government, the Applicant (for which information is required below) is the Local Housing Trust Fund or administering Local Government. The PLHA award will be made to the Applicant (upon meeting threshold requirements) and the Applicant is responsible for meeting all program requirements throughout the term of the Standard Agreement.  \n\nThe 302(c)(4) Plan template worksheet requires first choosing one or more of the Eligible Activities listed below. If \"Yes\" is clicked, the 302(c)(4) Plan worksheet opens a series of questions about what precise activities are planned. Some specific activities, such as providing downpayment assistance to lower-income households for acquisition of an affordable home, could be included under either Activity 2 or 9. Please only choose one of those Activities; don't list the downpayment assistance under both Activities. Please note that 40% of each allocation you are requesting to amend with this application MUST be allocated to an activity that supports Homeownership in accordance with the NOFA. Ownership activities are 2,3,4,7,8,9 (activities 2,3,4, & 8 will only count as ownership if the funds will go towards ownership sub activities as opposed to rental housing sub activities including ADU's)                                                                                                                                                                                                                                                                                    \n\nIf the PLHA funds are used for the same Activity but for different Area Median Income (AMI) level, select the highest AMI level the Activity will serve (you can always go lower than what is listed but you may not serve higher than what is listed without completing a plan amendment in the future). \n\nFor each year (2021-2023), allocations must equal 100% annually including the allowable administrative costs of up to 5%.\n  "]
["§300 Eligible Applicants"]
["§300(a) and (b) Eligible Applicants for the Entitlement and Non-Entitlement formula component described in Section §100(b)(1) and (2) are limited to the metropolitan cities and urban counties allocated a grant for the federal fiscal year 2017 pursuant to the federal CDBG formula specified in 42 USC, Section §5306 and Non-entitlement local governments."]
["Applicant:  "]
["Address:"]
["City:",null,null,null,null,null,null,null,null,"State:",null,null,null,null,"Zip:",null,null,null,null,null,"County:"]
["Auth Rep Name:",null,null,null,null,null,null,null,null,"Title:",null,null,null,null,null,null,null,"Auth Rep. Email:",null,null,null,null,null,null,null,null,null,null,null,null,null,"Phone:"]
["Address:",null,null,null,null,null,null,null,null,null,null,null,null,null,null,null,null,"City:",null,null,null,null,null,null,null,null,null,"State:",null,null,null,"Zip Code:"]
["Contact Name:",null,null,null,null,null,null,null,null,"Title:",null,null,null,null,null,null,null," Contact Email:",null,null,null,null,null,null,null,null,null,null,null,"Contact Phone:"]
["Address:",null,null,null,null,null,null,null,null,null,null,null,null,null,null,null,null,"City:",null,null,null,null,null,null,null,null,null,"State:",null,null,null,"Zip Code:"]
["§300(d) Is Applicant delegated by another Local government to administer on its behalf its formula allocation of program funds?"]
["§300(d) If Applicant answered \"Yes\" above, has the Applicant attached the legally binding agreement required by §300(c) and (d)?",null,null,null,null,null,null,null,null,null,null,null,null,null,null,null,null,null,null,null,null,null,null,null,null,null,"A sample agreement can be found by double clicking on the icon to the right"]
["File Name:",null,null,"Application and/or Adopting the PLHA Plan (2020-2023 Allocations) Reso",null,null,null,null,null,null,null,"Pursuant to section 302(c)(4) of the Guidelines, Applicant’s PLHA Plan for 2020-2023 allocations is attached to this resolution, and Applicant certifies compliance with all public notice, comment, and hearing requirements in accordance with the Guidelines.",null,null,null,null,null,null,null,null,null,null,null,null,null,null,null,null,null,null,null,null,"Uploaded to HCD?"]
["File Name:",null,null,"Gov TIN",null,null,null,null,null,null,null,"Provide a signed Gov't TIN Form",null,null,null,null,null,null,null,null,null,null,null,null,null,null,null,null,null,null,"Uploaded to HCD?"]
["File Name:",null,null,"Applicant Delegation Agreement",null,null,null,null,null,null,null,"Legally binding agreement between Delegating and Administering Local Governments (sample provided—just click on icon in row 19, column AH)",null,null,null,null,null,null,null,null,null,null,null,null,null,null,null,null,null,null,"Uploaded to HCD?"]
["§301 Eligible Activities"]
["§301(a) Eligible activities are limited to the following:",null,null,null,null,null,null,null,null,null,null,null,null,null,null,null,null,null,null,null,null,null,null,null,null,null,null,null,null,null,null,null,null,null,null,"Select below:"]
["§301(a)(1) The predevelopment, development, acquisition, rehabilitation, and preservation of multifamily, residential live-work, rental housing that is affordable to Extremely low-,Very low-, Low-, or Moderate-income households, including necessary operating subsidies."]
["§301(a)(2) The predevelopment, development, acquisition, rehabilitation, and preservation of affordable rental and ownership housing, including Accessory Dwelling Units (ADUs), that meets the needs of a growing workforce earning up to 120 percent of AMI, or 150 percent of AMI in high-cost areas. ADUs shall be available for occupancy for a term of no less than 30 days."]
["§301(a)(3) Matching portions of funds placed into Local or Regional Housing Trust Funds."]
["§301(a)(4) Matching portions of funds available through the Low- and Moderate-Income Housing Asset Fund pursuant to subdivision (d) of HSC Section 34176."]
["§301(a)(5) Capitalized Reserves for services connected to the preservation and creation of new permanent supportive housing."]
["§301(a)(6) Assisting persons who are experiencing or At-risk of homelessness, including, but not limited to, providing rapid re-housing, rental assistance, supportive/case management services that allow people to obtain and retain housing, operating and capital costs for navigation centers and emergency shelters, and the new construction, rehabilitation, and preservation of permanent and transitional housing."]
["§301(a)(7) Accessibility modifications in Lower-income Owner-occupied housing."]
["§301(a)(8) Efforts to acquire and rehabilitate foreclosed or vacant homes and apartments."]
["§301(a)(9) Homeownership opportunities, including, but not limited to, down payment assistance."]
["§301(a)(10) Fiscal incentives made by a county to a city within the county to incentivize approval of one or more affordable housing Projects, or matching funds invested by a county in an affordable housing development Project in a city within the county, provided that the city has made an equal or greater investment in the Project. The county fiscal incentives shall be in the form of a grant or low-interest loan to an affordable housing Project. Matching funds investments by both the county and the city also shall be a grant or low-interest deferred loan to the affordable housing Project. "]
["Certifications"]
["On behalf of the entity identified below, I certify that: The information, statements and attachments included in this application are, to the best of my knowledge and belief, true and correct and I possess the legal authority to submit this application on behalf of the entity identified in the signature block."]
[]
["Authorized Representative Printed Name ",null,null,null,null,null,null,null,null,null,null,null,"Title",null,null,null,null,null,null,null,"Signature",null,null,null,null,null,null,null,null,null,null,null,null,null,null,null,"Date"]
[]
["End of Document"]

{"sheet":"302(c)(4) Plan","index":3,"n_rows":154,"n_cols":36,"rows_kept":154,"cut":false,"hidden":false,"merged":[[136,0,136,6],[136,7,136,8],[136,9,136,10],[136,11,136,12],[136,13,136,14],[136,15,136,16],[136,17,136,18],[136,19,136,20],[136,21,136,22],[136,23,136,24],[136,25,136,26],[136,27,136,28],[136,29,136,30],[136,31,136,32],[136,33,136,34],[136,35,136,37],[137,0,137,6],[137,7,137,8],[137,9,137,10],[137,11,137,12],[137,13,137,14],[137,15,137,16],[137,17,137,18],[137,19,137,20],[137,21,137,22],[137,23,137,24],[137,25,137,26],[137,27,137,28],[137,29,137,30],[137,31,137,32],[137,33,137,34],[137,35,137,37],[107,21,107,22],[110,11,110,12],[128,31,128,32],[127,33,127,34],[127,35,127,37],[128,0,128,6],[128,7,128,8],[128,9,128,10],[128,11,128,12],[128,13,128,14],[128,15,128,16],[128,17,128,18],[128,19,128,20],[127,21,127,22],[127,23,127,24],[127,25,127,26],[127,27,127,28],[127,29,127,30],[127,31,127,32],[109,7,109,8],[109,9,109,10],[109,11,109,12],[109,13,109,14],[109,15,109,16],[109,17,109,18],[109,19,109,20],[114,33,114,34],[114,35,114,37],[114,21,114,22],[114,23,114,24],[114,25,114,26],[114,27,114,28],[114,29,114,30],[114,31,114,32],[109,21,109,22],[109,23,109,24],[109,25,109,26],[109,27,109,28],[109,29,109,30],[109,31,109,32],[109,33,109,34],[109,35,109,37],[110,7,110,8],[110,9,110,10],[81,33,81,34],[84,0,84,6],[84,7,84,8],[84,9,84,10],[87,0,87,37],[88,0,88,37],[90,0,90,37],[93,33,93,34],[93,35,93,37],[94,0,94,6],[94,7,94,8],[94,9,94,10],[94,11,94,12],[94,13,94,14],[94,15,94,16],[94,17,94,18],[94,19,94,20],[93,21,93,22],[93,23,93,24],[93,25,93,26],[93,27,93,28],[93,29,93,30],[93,31,93,32],[93,0,93,6],[93,7,93,8],[82,15,82,16],[82,17,82,18],[84,11,84,12],[84,13,84,14],[84,15,84,16],[84,17,84,18],[84,19,84,20],[77,0,77,37],[80,35,80,37],[81,0,81,6],[81,7,81,8],[81,9,81,10],[81,11,81,12],[81,13,81,14],[81,15,81,16],[81,17,81,18],[81,19,81,20],[81,21,81,22],[80,23,80,24],[80,25,80,26],[80,27,80,28],[80,29,80,30],[80,31,80,32],[80,33,80,34],[80,0,80,6],[80,7,80,8],[80,9,80,10],[80,11,80,12],[80,13,80,14],[80,15,80,16],[80,17,80,18],[80,19,80,20],[80,21,80,22],[81,35,81,37],[81,23,81,24],[81,25,81,26],[81,27,81,28],[81,29,81,30],[81,31,81,32],[69,11,69,12],[69,13,69,14],[69,15,69,16],[69,17,69,18],[69,19,69,20],[69,21,69,22],[68,23,68,24],[68,25,68,26],[68,27,68,28],[68,29,68,30],[68,31,68,32],[68,33,68,34],[71,0,71,6],[71,7,71,8],[71,9,71,10],[71,11,71,12],[75,0,75,37],[71,13,71,14],[71,15,71,16],[71,17,71,18],[71,19,71,20],[71,21,71,22],[71,23,71,24],[71,25,71,26],[71,27,71,28],[71,29,71,30],[71,31,71,32],[71,33,71,34],[71,35,71,37],[72,0,72,6],[72,7,72,8],[72,9,72,10],[55,23,55,24],[55,25,55,26],[55,27,55,28],[55,29,55,30],[55,31,55,32],[55,33,55,34],[62,0,62,37],[58,0,58,6],[58,7,58,8],[67,35,67,37],[68,0,68,6],[68,7,68,8],[68,9,68,10],[68,11,68,12],[68,13,68,14],[68,15,68,16],[68,17,68,18],[68,19,68,20],[68,21,68,22],[67,23,67,24],[67,25,67,26],[67,27,67,28],[67,29,67,30],[67,31,67,32],[67,33,67,34],[67,0,67,6],[67,7,67,8],[67,9,67,10],[67,11,67,12],[67,13,67,14],[67,15,67,16],[67,17,67,18],[54,25,54,26],[54,27,54,28],[54,29,54,30],[54,31,54,32],[54,33,54,34],[54,0,54,6],[54,7,54,8],[54,9,54,10],[54,11,54,12],[54,13,54,14],[54,15,54,16],[54,17,54,18],[54,19,54,20],[54,21,54,22],[56,35,56,37],[61,0,61,37],[56,23,56,24],[56,25,56,26],[56,27,56,28],[56,29,56,30],[56,31,56,32],[56,33,56,34],[55,35,55,37],[56,0,56,6],[56,7,56,8],[56,9,56,10],[56,11,56,12],[56,13,56,14],[56,15,56,16],[56,17,56,18],[56,19,56,20],[56,21,56,22],[43,33,43,34],[43,35,43,37],[43,21,43,22],[43,23,43,24],[43,25,43,26],[43,27,43,28],[43,29,43,30],[43,31,43,32],[53,35,53,37],[53,23,53,24],[53,25,53,26],[53,27,53,28],[53,29,53,30],[53,31,53,32],[53,33,53,34],[53,0,53,6],[53,7,53,8],[53,9,53,10],[53,11,53,12],[53,13,53,14],[53,15,53,16],[53,17,53,18],[53,19,53,20],[53,21,53,22],[45,0,45,6],[45,7,45,8],[45,9,45,10],[45,11,45,12],[45,13,45,14],[45,15,45,16],[45,17,45,18],[45,19,45,20],[42,33,42,34],[42,35,42,37],[43,0,43,6],[43,7,43,8],[43,9,43,10],[43,11,43,12],[43,13,43,14],[43,15,43,16],[43,17,43,18],[43,19,43,20],[42,21,42,22],[42,23,42,24],[42,25,42,26],[42,27,42,28],[42,29,42,30],[42,31,42,32],[41,33,41,34],[41,35,41,37],[42,0,42,6],[42,7,42,8],[42,9,42,10],[42,11,42,12],[42,13,42,14],[42,15,42,16],[42,17,42,18],[42,19,42,20],[41,21,41,22],[41,23,41,24],[41,25,41,26],[41,27,41,28],[41,29,41,30],[41,31,41,32],[41,7,41,8],[41,9,41,10],[41,11,41,12],[41,13,41,14],[41,15,41,16],[41,17,41,18],[41,19,41,20],[40,21,40,22],[40,23,40,24],[40,25,40,26],[40,27,40,28],[40,29,40,30],[40,31,40,32],[39,33,39,34],[39,35,39,37],[40,0,40,6],[40,7,40,8],[40,9,40,10],[40,11,40,12],[40,13,40,14],[40,15,40,16],[40,17,40,18],[40,19,40,20],[39,21,39,22],[39,23,39,24],[39,25,39,26],[39,27,39,28],[39,29,39,30],[39,31,39,32],[41,0,41,6],[30,33,30,34],[30,35,30,37],[33,0,33,37],[30,21,30,22],[30,23,30,24],[30,25,30,26],[30,27,30,28],[30,29,30,30],[30,31,30,32],[31,0,31,6],[31,7,31,8],[31,9,31,10],[31,11,31,12],[31,13,31,14],[31,15,31,16],[31,17,31,18],[31,19,31,20],[32,0,32,6],[32,7,32,8],[32,9,32,10],[32,11,32,12],[32,13,32,14],[32,15,32,16],[32,17,32,18],[32,19,32,20],[32,21,32,22],[32,23,32,24],[32,25,32,26],[32,27,32,28],[32,29,32,30],[32,31,32,32],[32,33,32,34],[29,33,29,34],[29,35,29,37],[30,0,30,6],[30,7,30,8],[30,9,30,10],[30,11,30,12],[30,13,30,14],[30,15,30,16],[30,17,30,18],[30,19,30,20],[29,21,29,22],[29,23,29,24],[29,25,29,26],[29,27,29,28],[29,29,29,30],[29,31,29,32],[28,33,28,34],[28,35,28,37],[29,0,29,6],[29,7,29,8],[29,9,29,10],[29,11,29,12],[29,13,29,14],[29,15,29,16],[29,17,29,18],[29,19,29,20],[28,21,28,22],[28,23,28,24],[28,25,28,26],[28,27,28,28],[28,29,28,30],[28,31,28,32],[27,33,27,34],[27,35,27,37],[28,0,28,6],[28,7,28,8],[28,9,28,10],[28,11,28,12],[28,13,28,14],[28,15,28,16],[28,17,28,18],[28,19,28,20],[27,21,27,22],[27,23,27,24],[27,25,27,26],[27,27,27,28],[27,29,27,30],[27,31,27,32],[26,33,26,34],[26,35,26,37],[27,0,27,6],[27,7,27,8],[27,9,27,10],[27,11,27,12],[27,13,27,14],[27,15,27,16],[27,17,27,18],[27,19,27,20],[26,21,26,22],[26,23,26,24],[26,25,26,26],[26,27,26,28],[26,29,26,30],[26,31,26,32],[25,33,25,34],[25,35,25,37],[26,0,26,6],[26,7,26,8],[26,9,26,10],[26,11,26,12],[26,13,26,14],[26,15,26,16],[26,17,26,18],[26,19,26,20],[25,21,25,22],[25,23,25,24],[25,25,25,26],[25,27,25,28],[25,29,25,30],[25,31,25,32],[25,0,25,6],[25,7,25,8],[25,9,25,10],[25,11,25,12],[25,13,25,14],[25,15,25,16],[25,17,25,18],[25,19,25,20],[18,29,18,30],[18,31,18,32],[18,33,18,34],[18,35,18,37],[21,0,21,37],[24,0,24,37],[18,0,18,6],[18,7,18,8],[18,9,18,10],[18,11,18,12],[18,13,18,14],[18,15,18,16],[18,17,18,18],[18,19,18,20],[18,21,18,22],[18,23,18,24],[18,25,18,26],[18,27,18,28],[17,0,17,6],[17,7,17,8],[17,9,17,10],[17,11,17,12],[17,13,17,14],[17,15,17,16],[17,17,17,18],[17,19,17,20],[17,21,17,22],[16,23,16,24],[16,25,16,26],[16,27,16,28],[16,29,16,30],[16,31,16,32],[16,33,16,34],[15,35,15,37],[16,0,16,6],[16,7,16,8],[16,9,16,10],[16,11,16,12],[16,13,16,14],[16,15,16,16],[16,17,16,18],[16,19,16,20],[16,21,16,22],[15,23,15,24],[15,25,15,26],[15,27,15,28],[15,29,15,30],[15,31,15,32],[15,33,15,34],[17,35,17,37],[15,7,15,8],[15,9,15,10],[15,11,15,12],[15,13,15,14],[15,15,15,16],[15,17,15,18],[15,19,15,20],[15,21,15,22],[14,23,14,24],[14,25,14,26],[14,27,14,28],[14,29,14,30],[14,31,14,32],[14,33,14,34],[14,0,14,6],[14,7,14,8],[14,9,14,10],[14,11,14,12],[14,13,14,14],[14,15,14,16],[14,17,14,18],[14,19,14,20],[14,21,14,22],[15,0,15,6],[0,0,0,34],[0,35,0,37],[1,0,1,37],[2,0,2,37],[3,0,3,37],[4,0,4,37],[12,35,12,37],[13,0,13,6],[13,7,13,8],[13,9,13,10],[13,11,13,12],[13,13,13,14],[13,15,13,16],[13,17,13,18],[13,19,13,20],[13,21,13,22],[12,23,12,24],[12,25,12,26],[12,27,12,28],[5,0,5,37],[6,0,6,37],[7,0,7,37],[8,0,8,37],[9,0,9,37],[10,0,10,37],[11,0,11,37],[12,0,12,6],[12,7,12,8],[12,9,12,10],[12,11,12,12],[12,13,12,14],[12,15,12,16],[12,17,12,18],[12,19,12,20],[12,21,12,22],[14,35,14,37],[12,29,12,30],[12,31,12,32],[12,33,12,34],[13,23,13,24],[13,25,13,26],[13,27,13,28],[13,29,13,30],[13,31,13,32],[13,33,13,34],[31,21,31,22],[31,23,31,24],[31,25,31,26],[31,27,31,28],[31,29,31,30],[31,31,31,32],[31,33,31,34],[31,35,31,37],[16,35,16,37],[22,0,22,37],[23,0,23,37],[19,0,19,37],[20,0,20,37],[17,23,17,24],[17,25,17,26],[17,27,17,28],[17,29,17,30],[17,31,17,32],[17,33,17,34],[32,35,32,37],[34,0,34,37],[37,0,37,37],[38,0,38,37],[44,0,44,6],[44,7,44,8],[44,9,44,10],[44,11,44,12],[44,13,44,14],[44,15,44,16],[44,17,44,18],[44,19,44,20],[44,21,44,22],[44,23,44,24],[44,25,44,26],[44,27,44,28],[44,29,44,30],[44,31,44,32],[44,33,44,34],[44,35,44,37],[35,0,35,37],[36,0,36,37],[39,0,39,6],[39,7,39,8],[39,9,39,10],[39,11,39,12],[39,13,39,14],[39,15,39,16],[39,17,39,18],[39,19,39,20],[40,33,40,34],[40,35,40,37],[45,21,45,22],[45,23,45,24],[45,25,45,26],[45,27,45,28],[45,29,45,30],[45,31,45,32],[45,33,45,34],[45,35,45,37],[46,0,46,6],[46,7,46,8],[46,9,46,10],[46,11,46,12],[46,13,46,14],[46,15,46,16],[46,17,46,18],[46,19,46,20],[46,21,46,22],[46,23,46,24],[46,25,46,26],[46,27,46,28],[46,29,46,30],[46,31,46,32],[46,33,46,34],[46,35,46,37],[47,0,47,37],[50,0,50,37],[51,0,51,37],[52,0,52,37],[57,0,57,6],[57,7,57,8],[57,9,57,10],[57,11,57,12],[57,13,57,14],[57,15,57,16],[57,17,57,18],[57,19,57,20],[57,21,57,22],[57,23,57,24],[57,25,57,26],[57,27,57,28],[57,29,57,30],[57,31,57,32],[57,33,57,34],[57,35,57,37],[48,0,48,37],[49,0,49,37],[55,0,55,6],[55,7,55,8],[55,9,55,10],[55,11,55,12],[55,13,55,14],[55,15,55,16],[55,17,55,18],[55,19,55,20],[55,21,55,22],[54,23,54,24],[58,9,58,10],[58,11,58,12],[58,13,58,14],[58,15,58,16],[58,17,58,18],[58,19,58,20],[58,21,58,22],[58,23,58,24],[58,25,58,26],[58,27,58,28],[58,29,58,30],[58,31,58,32],[58,33,58,34],[58,35,58,37],[59,0,59,6],[59,7,59,8],[59,9,59,10],[59,11,59,12],[59,13,59,14],[59,15,59,16],[59,17,59,18],[59,19,59,20],[59,21,59,22],[59,23,59,24],[59,25,59,26],[59,27,59,28],[59,29,59,30],[59,31,59,32],[59,33,59,34],[59,35,59,37],[60,0,60,6],[60,7,60,8],[60,9,60,10],[60,11,60,12],[60,13,60,14],[60,15,60,16],[60,17,60,18],[60,19,60,20],[60,21,60,22],[60,23,60,24],[60,25,60,26],[60,27,60,28],[60,29,60,30],[60,31,60,32],[60,33,60,34],[60,35,60,37],[63,0,63,37],[64,0,64,37],[65,0,65,37],[66,0,66,37],[70,0,70,6],[70,7,70,8],[70,9,70,10],[70,11,70,12],[70,13,70,14],[70,15,70,16],[70,17,70,18],[70,19,70,20],[70,21,70,22],[70,23,70,24],[70,25,70,26],[70,27,70,28],[70,29,70,30],[70,31,70,32],[70,33,70,34],[70,35,70,37],[67,19,67,20],[67,21,67,22],[69,35,69,37],[69,23,69,24],[69,25,69,26],[69,27,69,28],[69,29,69,30],[69,31,69,32],[69,33,69,34],[68,35,68,37],[69,0,69,6],[69,7,69,8],[69,9,69,10],[72,11,72,12],[72,13,72,14],[72,15,72,16],[72,17,72,18],[72,19,72,20],[72,21,72,22],[72,23,72,24],[72,25,72,26],[72,27,72,28],[72,29,72,30],[72,31,72,32],[72,33,72,34],[72,35,72,37],[73,0,73,6],[73,7,73,8],[73,9,73,10],[73,11,73,12],[73,13,73,14],[73,15,73,16],[73,17,73,18],[73,19,73,20],[73,21,73,22],[73,23,73,24],[73,25,73,26],[73,27,73,28],[73,29,73,30],[73,31,73,32],[73,33,73,34],[73,35,73,37],[76,0,76,37],[74,0,74,37],[78,0,78,37],[79,0,79,37],[83,0,83,6],[83,7,83,8],[83,9,83,10],[83,11,83,12],[83,13,83,14],[83,15,83,16],[83,17,83,18],[83,19,83,20],[83,21,83,22],[83,23,83,24],[83,25,83,26],[83,27,83,28],[83,29,83,30],[83,31,83,32],[83,33,83,34],[83,35,83,37],[82,35,82,37],[82,23,82,24],[82,25,82,26],[82,27,82,28],[82,29,82,30],[82,31,82,32],[82,33,82,34],[82,0,82,6],[82,7,82,8],[82,9,82,10],[82,11,82,12],[82,13,82,14],[84,35,84,37],[85,0,85,6],[85,7,85,8],[85,9,85,10],[85,11,85,12],[85,13,85,14],[85,15,85,16],[85,17,85,18],[85,19,85,20],[85,21,85,22],[85,23,85,24],[85,25,85,26],[85,27,85,28],[85,29,85,30],[85,31,85,32],[85,33,85,34],[85,35,85,37],[82,19,82,20],[82,21,82,22],[86,0,86,6],[86,7,86,8],[86,9,86,10],[86,11,86,12],[86,13,86,14],[86,15,86,16],[86,17,86,18],[86,19,86,20],[86,21,86,22],[86,23,86,24],[86,25,86,26],[86,27,86,28],[86,29,86,30],[86,31,86,32],[86,33,86,34],[84,21,84,22],[84,23,84,24],[84,25,84,26],[84,27,84,28],[84,29,84,30],[84,31,84,32],[84,33,84,34],[86,35,86,37],[89,0,89,37],[91,0,91,37],[92,0,92,37],[95,0,95,6],[95,7,95,8],[95,9,95,10],[95,11,95,12],[95,13,95,14],[95,15,95,16],[95,17,95,18],[95,19,95,20],[95,21,95,22],[95,23,95,24],[95,25,95,26],[95,27,95,28],[95,29,95,30],[95,31,95,32],[95,33,95,34],[95,35,95,37],[93,9,93,10],[93,11,93,12],[93,13,93,14],[93,15,93,16],[93,17,93,18],[93,19,93,20],[94,33,94,34],[94,21,94,22],[94,23,94,24],[94,25,94,26],[94,27,94,28],[94,29,94,30],[94,31,94,32],[96,21,96,22],[96,23,96,24],[96,25,96,26],[96,27,96,28],[96,29,96,30],[96,31,96,32],[96,33,96,34],[96,35,96,37],[97,0,97,6],[97,7,97,8],[97,9,97,10],[97,11,97,12],[97,13,97,14],[97,15,97,16],[97,17,97,18],[97,19,97,20],[97,21,97,22],[97,23,97,24],[97,25,97,26],[97,27,97,28],[97,29,97,30],[97,31,97,32],[97,33,97,34],[97,35,97,37],[96,0,96,6],[96,7,96,8],[96,9,96,10],[96,11,96,12],[96,13,96,14],[96,15,96,16],[96,17,96,18],[96,19,96,20],[98,0,98,6],[98,7,98,8],[98,9,98,10],[98,11,98,12],[98,13,98,14],[98,15,98,16],[98,17,98,18],[98,19,98,20],[98,21,98,22],[98,23,98,24],[98,25,98,26],[98,27,98,28],[98,29,98,30],[98,31,98,32],[98,33,98,34],[98,35,98,37],[99,0,99,6],[99,7,99,8],[99,9,99,10],[99,11,99,12],[99,13,99,14],[99,15,99,16],[99,17,99,18],[99,19,99,20],[99,21,99,22],[99,23,99,24],[99,25,99,26],[99,27,99,28],[99,29,99,30],[99,31,99,32],[99,33,99,34],[99,35,99,37],[100,0,100,6],[100,7,100,8],[100,9,100,10],[100,11,100,12],[100,13,100,14],[100,15,100,16],[100,17,100,18],[100,19,100,20],[100,21,100,22],[100,23,100,24],[100,25,100,26],[100,27,100,28],[100,29,100,30],[100,31,100,32],[100,33,100,34],[100,35,100,37],[101,0,101,37],[102,0,102,37],[103,0,103,37],[104,0,104,37],[105,0,105,37],[106,0,106,37],[108,0,108,6],[108,7,108,8],[108,9,108,10],[108,11,108,12],[108,13,108,14],[108,15,108,16],[108,17,108,18],[108,19,108,20],[108,21,108,22],[108,23,108,24],[108,25,108,26],[108,27,108,28],[108,29,108,30],[108,31,108,32],[108,33,108,34],[108,35,108,37],[107,0,107,6],[107,7,107,8],[107,9,107,10],[107,11,107,12],[107,13,107,14],[107,15,107,16],[107,17,107,18],[107,19,107,20]],"merged_total":1346,"flags":["merged_cut"]}
["§302(c)(4) Plan ",null,null,null,null,null,null,null,null,null,null,null,null,null,null,null,null,null,null,null,null,null,null,null,null,null,null,null,null,null,null,null,null,null,null,"Rev.10/10/2024"]
["§302(c)(4)(A) Describe the manner in which allocated funds will be used for eligible activities. "]
[]
["§302(c)(4)(B) Provide a description of the way the Local government will prioritize investments that increase the supply of housing for households with incomes at or below 60 percent of Area Median Income (AMI)."]
[]
["§302(c)(4)(C) Provide a description of how the Plan is consistent with the programs set forth in the Local Government’s Housing Element. "]
[]
["Activities Detail (Activities Detail (Must make a selection on Formula Allocation Application worksheet under Eligible Activities, §301))"]
["§301(a)(1) The predevelopment, development, acquisition, rehabilitation, and preservation of multifamily, residential live-work, rental housing that is affordable to extremely low-,very low-, low-, or moderate-income households, including necessary Operating subsidies."]
["§302(c)(4)(E)(i) Provide a detailed and complete description of how allocated funds will be used for each proposed Affordable Rental Housing Activity. "]
[]
["Complete the table below for each proposed Affordable Rental Housing Activity to be funded with 2021-2023 PLHA allocations. If a single Activity will be assisting households at more than one level of Area Median Income, please list the highest AMI to be served."]
["Funding Allocation Year "]
["Type of Affordable Housing Activity"]
["§302(c)(4)(E)(i) Percentage of Funds Allocated for the Proposed Affordable Rental Housing  Activity  "]
["§302(c)(4)(E)(ii) Area Median Income Level Served ",null,null,null,null,null,null,null,null,null,null,null,null,null,null,null,null,null,null,null,null,null,null,null,null,null,null,null,null,null,null,null,null,null,null,"TOTAL"]
["§302(c)(4)(E)(ii) Unmet share of the RHNA at the AMI Level\nNote: complete for years 2021, 2022, 2023 only",null,null,null,null,null,null,null,null,null,null,null,null,null,null,null,null,null,null,null,null,null,null,null,null,null,null,null,null,null,null,null,null,null,null,{"$f":"SUM(H17:AI17)","v":0}]
["§302(c)(4)(E)(ii) Projected Number of Households Served",null,null,null,null,null,null,null,null,null,null,null,null,null,null,null,null,null,null,null,null,null,null,null,null,null,null,null,null,null,null,null,null,null,null,{"$f":"SUM(H18:AI18)","v":0}]
["§302(c)(4)(E)(iv) Period of Affordability for the Proposed Affordable Rental Housing  Activity (55 years required for rental housing projects)",null,null,null,null,null,null,"55 Years",null,"55 Years",null,"55 Years",null,"55 Years",null,"55 Years",null,"55 Years",null,"55 Years",null,"55 Years",null,"55 Years",null,"55 Years",null,"55 Years",null,"55 Years",null,"55 Years",null,"55 Years"]
["§302(c)(4)(E)(iii) A description of major steps/actions and a proposed schedule for the implementation and completion of the Activity."]
[]
["§301(a)(2) The predevelopment, development, acquisition, rehabilitation, and preservation of Affordable rental and ownership housing, including Accessory Dwelling Units (ADUs), that meets the needs of a growing workforce earning up to 120 percent of AMI, or 150 percent of AMI in high-cost areas. ADUs shall be available for occupancy for a term of no less than 30 days."]
["§302(c)(4)(E)(i) Provide a detailed and complete description of how allocated funds will be used for each proposed Affordable Rental and Ownership Housing Activity."]
[]
["Complete the table below for each proposed Affordable Rental and Ownership Housing Activity to be funded with 2021-2023 PLHA allocations. If a single Activity will be assisting households at more than one level of Area Median Income, please list the highest AMI to be served. "]
["Funding Allocation Year "]
["Type of Affordable Housing Activity"]
["§302(c)(4)(E)(i) Percentage of Funds Allocated for Each Affordable Housing Activity"]
["What Percentage of the Percentage Above Will be Used for Ownership Housing?"]
["§302(c)(4)(E)(ii) Area Median Income Level Served",null,null,null,null,null,null,null,null,null,null,null,null,null,null,null,null,null,null,null,null,null,null,null,null,null,null,null,null,null,null,null,null,null,null,"TOTAL"]
["§302(c)(4)(E)(ii) Unmet share of the RHNA at the AMI Level\nNote: complete for years 2021, 2022, 2023 only",null,null,null,null,null,null,null,null,null,null,null,null,null,null,null,null,null,null,null,null,null,null,null,null,null,null,null,null,null,null,null,null,null,null,{"$f":"SUM(H31:AI31)","v":0}]
["§302(c)(4)(E)(ii) Projected Number of Households Served",null,null,null,null,null,null,null,null,null,null,null,null,null,null,null,null,null,null,null,null,null,null,null,null,null,null,null,null,null,null,null,null,null,null,{"$f":"SUM(H32:AH32)","v":0}]
["§302(c)(4)(E)(iv) Period of Affordability for the Proposed Activity (55 years required for rental housing projects)"]
["§302(c)(4)(E)(iii) A description of major steps/actions and a proposed schedule for the implementation and completion of each Affordable Rental and Ownership Housing project."]
[]
["§301(a)(3) Matching portions of funds placed into Local or Regional Housing Trust Funds."]
["§302(c)(4)(E)(i) Provide a detailed and complete description of how allocated funds will be used for the proposed Activity."]
[]
["Complete the table below for each proposed Activity to be funded with 2021-2023 PLHA allocations. If a single Activity will be assisting households at more than one level of Area Median Income, please list the highest AMI to be served. "]
["Funding Allocation Year "]
["Type of Affordable Housing Activity"]
["§302(c)(4)(E)(i) Percentage of Funds Allocated for the Proposed Activity"]
["What Percentage of the Percentage Above Will be Used for Ownership Housing?"]
["§302(c)(4)(E)(ii) Area Median Income Level Served ",null,null,null,null,null,null,null,null,null,null,null,null,null,null,null,null,null,null,null,null,null,null,null,null,null,null,null,null,null,null,null,null,null,null,"TOTAL"]
["§302(c)(4)(E)(ii) Unmet share of the RHNA at the AMI Level\nNote: complete for years 2021, 2022, 2023 only",null,null,null,null,null,null,null,null,null,null,null,null,null,null,null,null,null,null,null,null,null,null,null,null,null,null,null,null,null,null,null,null,null,null,{"$f":"SUM(H45:AI45)","v":0}]
["§302(c)(4)(E)(ii) Projected Number of Households Served",null,null,null,null,null,null,null,null,null,null,null,null,null,null,null,null,null,null,null,null,null,null,null,null,null,null,null,null,null,null,null,null,null,null,{"$f":"SUM(H46:AH46)","v":0}]
["§302(c)(4)(E)(iv) Period of Affordability for the Proposed Activity (55 years required for rental housing projects)"]
["§302(c)(4)(E)(iii) A description of major steps/actions and a proposed schedule for the implementation and completion of the Activity."]
[]
["§301(a)(4)  Matching portions of funds available through the Low- and Moderate-Income Housing Asset Fund pursuant to subdivision (d) of HSC Section 34176."]
["§302(c)(4)(E)(i) Provide a detailed and complete description of how allocated funds will be used for the proposed Activity."]
[]
["Complete the table below for the proposed Activity to be funded with 2021-2023 PLHA allocations. If a single Activity will be assisting households at more than one level of Area Median Income, please list the highest AMI to be served. "]
["Funding Allocation Year "]
["Type of Affordable Housing Activity"]
["§302(c)(4)(E)(i) Percentage of Funds Allocated for the Proposed Activity"]
["What Percentage of the Percentage Above Will be Used for Ownership Housing?"]
["§302(c)(4)(E)(ii) Area Median Income Level Served ",null,null,null,null,null,null,null,null,null,null,null,null,null,null,null,null,null,null,null,null,null,null,null,null,null,null,null,null,null,null,null,null,null,null,"TOTAL"]
["§302(c)(4)(E)(ii) Unmet share of the RHNA at the AMI Level\nNote: complete for years 2021, 2022, 2023 only",null,null,null,null,null,null,null,null,null,null,null,null,null,null,null,null,null,null,null,null,null,null,null,null,null,null,null,null,null,null,null,null,null,null,{"$f":"SUM(H59:AI59)","v":0}]
["§302(c)(4)(E)(ii) Projected Number of Households Served",null,null,null,null,null,null,null,null,null,null,null,null,null,null,null,null,null,null,null,null,null,null,null,null,null,null,null,null,null,null,null,null,null,null,{"$f":"SUM(H60:AH60)","v":0}]
["§302(c)(4)(E)(iv) Period of Affordability for the Proposed Activity (55 years required for rental housing projects)"]
["§302(c)(4)(E)(iii) A description of major steps/actions and a proposed schedule for the implementation and completion of the Activity."]
[]
["§301(a)(5) Capitalized Reserves for Services connected to the preservation and creation of new permanent supportive housing."]
["§302(c)(4)(E)(i) Provide a detailed and complete description of how allocated funds will be used for the proposed Activity ."]
[]
["Complete the table below for each proposed Activity to be funded with 2021-2023 PLHA allocations. If a single Activity will be assisting households at more than one level of Area Median Income, please list the highest AMI to be served. "]
["Funding Allocation Year "]
["Type of Affordable Housing Activity"]
["§302(c)(4)(E)(i) Percentage of Funds Allocated for the Proposed Activity"]
["§302(c)(4)(E)(ii) Area Median Income Level Served ",null,null,null,null,null,null,null,null,null,null,null,null,null,null,null,null,null,null,null,null,null,null,null,null,null,null,null,null,null,null,null,null,null,null,"TOTAL"]
["§302(c)(4)(E)(ii) Unmet share of the RHNA at the AMI Level\nNote: complete for years 2021, 2022, 2023 only",null,null,null,null,null,null,null,null,null,null,null,null,null,null,null,null,null,null,null,null,null,null,null,null,null,null,null,null,null,null,null,null,null,null,{"$f":"SUM(H72:AH72)","v":0}]
["§302(c)(4)(E)(ii) Projected Number of Households Served",null,null,null,null,null,null,null,null,null,null,null,null,null,null,null,null,null,null,null,null,null,null,null,null,null,null,null,null,null,null,null,null,null,null,{"$f":"SUM(H73:AH73)","v":0}]
["§302(c)(4)(E)(iv) Period of Affordability for the Proposed Activity (55 years required for rental housing projects)"]
["§302(c)(4)(E)(iii) A description of major steps/actions and a proposed schedule for the implementation and completion of the Activity."]
[]
["§301(a)(6) Assisting persons who are experiencing or At risk of homelessness, including, but not limited to, providing rapid rehousing, rental assistance, supportive/case management services that allow people to obtain and retain housing, operating and capital costs for navigation centers and emergency shelters, and the new construction, rehabilitation, and preservation of permanent and transitional housing."]
["§302(c)(4)(E)(i) Provide a detailed and complete description of how allocated funds will be used for the proposed Activity."]
[]
["Complete the table below for each proposed Activity to be funded with 2021-2023 PLHA allocations. If a single Activity will be assisting households at more than one level of Area Median Income, please list the highest AMI to be served. "]
["Funding Allocation Year "]
["Type of Affordable Housing Activity"]
["§302(c)(4)(E)(i) Percentage of Funds Allocated for the Proposed Activity"]
["§302(c)(4)(E)(ii) Area Median Income Level Served ",null,null,null,null,null,null,null,null,null,null,null,null,null,null,null,null,null,null,null,null,null,null,null,null,null,null,null,null,null,null,null,null,null,null,"TOTAL"]
["§302(c)(4)(E)(ii) Unmet share of the RHNA at the AMI Level\nNote: complete for years 2021, 2022, 2023 only",null,null,null,null,null,null,null,null,null,null,null,null,null,null,null,null,null,null,null,null,null,null,null,null,null,null,null,null,null,null,null,null,null,null,{"$f":"SUM(H85:AI85)","v":0}]
["§302(c)(4)(E)(ii) Projected Number of Households Served",null,null,null,null,null,null,null,null,null,null,null,null,null,null,null,null,null,null,null,null,null,null,null,null,null,null,null,null,null,null,null,null,null,null,{"$f":"SUM(H86:AH86)","v":0}]
["§302(c)(4)(E)(iv) Period of Affordability for the Proposed Activity (55 years required for rental housing projects)"]
["§302(c)(4)(E)(iii) A description of major steps/actions and a proposed schedule for the implementation and completion of the Activity."]
[]
["§301(a)(7) Accessibility modifications in Lower-income Owner-occupied housing."]
["§302(c)(4)(E)(i) Provide a detailed and complete description of how allocated funds will be used for the proposed Activity."]
[]
["Complete the table below for each proposed Activity to be funded with 2021-2023 PLHA allocations. If a single Activity will be assisting households at more than one level of Area Median Income, please list the highest AMI to be served. "]
["Funding Allocation Year "]
["Type of Affordable Housing Activity"]
["§302(c)(4)(E)(i) Percentage of Funds Allocated for the Proposed Activity"]
["What Percentage of the Percentage Above Will be Used for Ownership Housing?"]
["§302(c)(4)(E)(ii) Area Median Income Level Served ",null,null,null,null,null,null,null,null,null,null,null,null,null,null,null,null,null,null,null,null,null,null,null,null,null,null,null,null,null,null,null,null,null,null,"TOTAL"]
["§302(c)(4)(E)(ii) Unmet share of the RHNA at the AMI Level\nNote: complete for years 2021, 2022, 2023 only",null,null,null,null,null,null,null,null,null,null,null,null,null,null,null,null,null,null,null,null,null,null,null,null,null,null,null,null,null,null,null,null,null,null,{"$f":"SUM(H99:AI99)","v":0}]
["§302(c)(4)(E)(ii) Projected Number of Households Served",null,null,null,null,null,null,null,null,null,null,null,null,null,null,null,null,null,null,null,null,null,null,null,null,null,null,null,null,null,null,null,null,null,null,{"$f":"SUM(H100:AH100)","v":0}]
["§302(c)(4)(E)(iv) Period of Affordability for the Proposed Activity"]
["§302(c)(4)(E)(iii) A description of major steps/actions and a proposed schedule for the implementation and completion of the Activity."]
[]
["§301(a)(8)  Efforts to acquire and rehabilitate foreclosed or vacant homes and apartments."]
["§302(c)(4)(E)(i) Provide a detailed and complete description of how allocated funds will be used for the proposed Activity."]
[]
["Complete the table below for each proposed Activity to be funded with 2021-2023 PLHA allocations. If a single Activity will be assisting households at more than one level of Area Median Income, please list the highest AMI to be served. "]
["Funding Allocation Year "]
["Type of Activity"]
["§302(c)(4)(E)(i) Percentage of Funds Allocated for the Proposed Activity"]
["What Percentage of the Percentage Above Will be Used for Ownership Housing?"]
["§302(c)(4)(E)(ii) Area Median Income Level Served ",null,null,null,null,null,null,null,null,null,null,null,null,null,null,null,null,null,null,null,null,null,null,null,null,null,null,null,null,null,null,null,null,null,null,"TOTAL"]
["§302(c)(4)(E)(ii) Unmet share of the RHNA at the AMI Level\nNote: complete for years 2021, 2022, 2023 only",null,null,null,null,null,null,null,null,null,null,null,null,null,null,null,null,null,null,null,null,null,null,null,null,null,null,null,null,null,null,null,null,null,null,{"$f":"SUM(H113:AI113)","v":0}]
["§302(c)(4)(E)(ii) Projected Number of Households Served",null,null,null,null,null,null,null,null,null,null,null,null,null,null,null,null,null,null,null,null,null,null,null,null,null,null,null,null,null,null,null,null,null,null,{"$f":"SUM(H114:AH114)","v":0}]
["§302(c)(4)(E)(iv) Period of Affordability for the Proposed  Activity (55 years required for rental housing projects)"]
["§302(c)(4)(E)(iii) A description of major steps/actions and a proposed schedule for the implementation and completion of the Activity."]
[]
["§301(a)(9)  Homeownership opportunities, including, but not limited to, down payment assistance."]
["§302(c)(4)(E)(i) Provide a detailed and complete description of how allocated funds will be used for the proposed Activity."]
[]
["Complete the table below for each proposed Activity to be funded with 2021-2023 PLHA allocations. If a single Activity will be assisting households at more than one level of Area Median Income, please list the highest AMI to be served. "]
["Funding Allocation Year "]
["Type of Homeowner Assistance"]
["§302(c)(4)(E)(i) Percentage of Funds Allocated for the Proposed Activity"]
["What Percentage of the Percentage Above Will be Used for Ownership Housing?"]
["§302(c)(4)(E)(ii) Area Median Income Level Served ",null,null,null,null,null,null,null,null,null,null,null,null,null,null,null,null,null,null,null,null,null,null,null,null,null,null,null,null,null,null,null,null,null,null,"TOTAL"]
["§302(c)(4)(E)(ii) Unmet share of the RHNA at the AMI Level\nNote: complete for years 2021, 2022, 2023 only",null,null,null,null,null,null,null,null,null,null,null,null,null,null,null,null,null,null,null,null,null,null,null,null,null,null,null,null,null,null,null,null,null,null,{"$f":"SUM(H127:AI127)","v":0}]
["§302(c)(4)(E)(ii) Projected Number of Households Served",null,null,null,null,null,null,null,null,null,null,null,null,null,null,null,null,null,null,null,null,null,null,null,null,null,null,null,null,null,null,null,null,null,null,{"$f":"SUM(H128:AH128)","v":0}]
["§302(c)(4)(E)(iv) Period of Affordability for the Proposed Activity"]
["§302(c)(4)(E)(iii) A description of major steps/actions and a proposed schedule for the implementation and completion of the Activity."]
[]
["§301(a)(10) Fiscal incentives made by a county to a city within the county to incentivize approval of one or more affordable housing Projects, or matching funds invested by a county in an affordable housing development Project in a city within the county, provided that the city has made an equal or greater investment in the Project. The county fiscal incentives shall be in the form of a grant or low-interest loan to an affordable housing Project. Matching funds investments by both the county and the city also shall be a grant or low-interest deferred loan to the affordable housing Project. "]
["§302(c)(4)(E)(i) Provide a detailed and complete description of how allocated funds will be used for the proposed Activity."]
[]
["Complete the table below for each proposed Activity to be funded with 2021-2023 PLHA allocations. If a single Activity will be assisting households at more than one level of Area Median Income, please list the highest AMI to be served. "]
["Funding Allocation Year "]
["Type of Activity"]
["Type of Affordable Housing Project "]
["§302(c)(4)(E)(i) Percentage of Funds Allocated for the Proposed Activity"]
["§302(c)(4)(E)(ii) Area Median Income Level Served ",null,null,null,null,null,null,null,null,null,null,null,null,null,null,null,null,null,null,null,null,null,null,null,null,null,null,null,null,null,null,null,null,null,null,"TOTAL"]
["§302(c)(4)(E)(ii) Unmet share of the RHNA at the AMI Level\nNote: complete for years 2021, 2022, 2023 only",null,null,null,null,null,null,null,null,null,null,null,null,null,null,null,null,null,null,null,null,null,null,null,null,null,null,null,null,null,null,null,null,null,null,{"$f":"SUM(H141:AI141)","v":0}]
["§302(c)(4)(E)(ii) Projected Number of Households Served",null,null,null,null,null,null,null,null,null,null,null,null,null,null,null,null,null,null,null,null,null,null,null,null,null,null,null,null,null,null,null,null,null,null,{"$f":"SUM(H142:AH142)","v":0}]
["§302(c)(4)(E)(iv) Period of Affordability for the Proposed Activity (55 years required for rental housing projects)"]
["§302(c)(4)(E)(iii) A description of major steps/actions and a proposed schedule for the implementation and completion of the Activity."]
[]
["File Name:",null,null,"Plan Adoption Reso",null,null,null,null,null,null,null,"§302(c)(4)(D) Evidence that the Plan was authorized and adopted by resolution by the Local jurisdiction and that the public had an adequate opportunity to review and comment on its content.",null,null,null,null,null,null,null,null,null,null,null,null,null,null,null,null,null,null,"Uploaded to HCD?"]
[]
["Total Percentage of Funds Allocated Calculator (2021 - 2023)"]
[null,null,null,null,null,null,null,null,null,"2021 Allocation",null,null,null,null,null,null,"2022 Allocation",null,null,null,null,null,null,"2023 Allocation"]
[null,null,null,null,null,null,null,null,null,"Admin",null,null,null,{"$f":"IF('Formula Allocation Application'!AK6=\"Yes\",\"5%\",\"0%\")","v":"0%"},null,null,"Admin",null,null,null,{"$f":"IF('Formula Allocation Application'!AK7=\"Yes\",\"5%\",\"0%\")","v":"0%"},null,null,"Admin",null,null,null,{"$f":"IF('Formula Allocation Application'!AK8=\"Yes\",\"5%\",\"0%\")","v":"0%"}]
[null,null,null,null,null,null,null,null,null,"Funds Allocated ",null,null,null,{"$f":"SUM(SUMIF(H$13:AI$13,2021,H$15:AI$15),SUMIF(H$26:AI$26,2021,H$28:AI$28),SUMIF(H$40:AI$40,2021,H$42:AI$42),SUMIF(H$54:AI$54,2021,H$56:AI$56),SUMIF(H$68:AI$68,2021,H$70:AI$70),SUMIF(H$81:AI$81,2021,H$83:AI$83),SUMIF(H$94:AI$94,2021,H$96:AI$96),SUMIF(H$108:AI$108,2021,H$110:AI$110),SUMIF(H$122:AI$122,2021,H$124:AI$124),SUMIF(H$136:AI$136,2021,H$139:AI$139))","v":0},null,null,"Funds Allocated ",null,null,null,{"$f":"SUM(SUMIF(H$13:AI$13,2022,H$15:AI$15),SUMIF(H$26:AI$26,2022,H$28:AI$28),SUMIF(H$40:AI$40,2022,H$42:AI$42),SUMIF(H$54:AI$54,2022,H$56:AI$56),SUMIF(H$68:AI$68,2022,H$70:AI$70),SUMIF(H$81:AI$81,2022,H$83:AI$83),SUMIF(H$94:AI$94,2022,H$96:AI$96),SUMIF(H$108:AI$108,2022,H$110:AI$110),SUMIF(H$122:AI$122,2022,H$124:AI$124),SUMIF(H$136:AI$136,2022,H$139:AI$139))","v":0},null,null,"Funds Allocated ",null,null,null,{"$f":"SUM(SUMIF(H$13:AI$13,2023,H$15:AI$15),SUMIF(H$26:AI$26,2023,H$28:AI$28),SUMIF(H$40:AI$40,2023,H$42:AI$42),SUMIF(H$54:AI$54,2023,H$56:AI$56),SUMIF(H$68:AI$68,2023,H$70:AI$70),SUMIF(H$81:AI$81,2023,H$83:AI$83),SUMIF(H$94:AI$94,2023,H$96:AI$96),SUMIF(H$108:AI$108,2023,H$110:AI$110),SUMIF(H$122:AI$122,2023,H$124:AI$124),SUMIF(H$136:AI$136,2023,H$139:AI$139))","v":0}]
[null,null,null,null,null,null,null,null,null,"Total Percentage of Funds Allocated for 2021 ",null,null,null,{"$f":"N150+N151","v":0},null,null,"Total Percentage of Funds Allocated for 2022 ",null,null,null,{"$f":"U150+U151","v":0},null,null,"Total Percentage of Funds Allocated for 2023",null,null,null,{"$f":"AB150+AB151","v":0}]
[]
["End of Document"]

{"sheet":"Urban County","index":4,"n_rows":4,"n_cols":3,"rows_kept":4,"cut":false,"hidden":true,"merged":[[1,0,1,2],[0,0,0,1]]}
["URBAN COUNTY",null,{"$f":"'Formula Allocation Application'!AJ1","v":"Rev. 10/28/24"}]
["If you are an Urban County, please complete the following table:"]
["List the cities that are part of your Urban County.","Are they opting in to receive a portion of the PLHA award?","List the amount of the allocation being applied for that will be shared with this city."]
["EXAMPLE: City of Trees","Yes",20000]

{"sheet":"Application Support","index":5,"n_rows":33,"n_cols":42,"rows_kept":33,"cut":false,"hidden":false,"merged":[[32,0,32,37],[30,29,30,31],[30,32,30,34],[30,35,30,37],[30,0,30,1],[30,2,30,4],[30,5,30,8],[30,9,30,14],[30,15,30,16],[30,17,30,28],[29,0,29,1],[29,2,29,4],[29,5,29,8],[29,9,29,14],[29,15,29,16],[29,17,29,28],[29,29,29,31],[29,32,29,34],[29,35,29,37],[28,0,28,1],[28,2,28,4],[28,5,28,8],[28,9,28,14],[28,15,28,16],[28,17,28,28],[28,29,28,31],[28,32,28,34],[28,35,28,37],[26,29,26,31],[26,32,26,34],[26,35,26,37],[27,0,27,1],[27,2,27,4],[27,5,27,8],[27,9,27,14],[27,15,27,16],[27,17,27,28],[27,29,27,31],[26,0,26,1],[26,2,26,4],[26,5,26,8],[26,9,26,14],[26,15,26,16],[26,17,26,28],[27,32,27,34],[27,35,27,37],[25,0,25,1],[25,2,25,4],[25,5,25,8],[25,9,25,14],[25,15,25,16],[25,17,25,28],[25,29,25,31],[25,32,25,34],[25,35,25,37],[24,0,24,1],[24,2,24,4],[24,5,24,8],[24,9,24,14],[24,15,24,16],[24,17,24,28],[24,29,24,31],[24,32,24,34],[24,35,24,37],[22,29,22,31],[22,32,22,34],[22,35,22,37],[23,0,23,1],[23,2,23,4],[23,5,23,8],[23,9,23,14],[23,15,23,16],[23,17,23,28],[23,29,23,31],[22,0,22,1],[22,2,22,4],[22,5,22,8],[22,9,22,14],[22,15,22,16],[22,17,22,28],[23,32,23,34],[23,35,23,37],[21,0,21,1],[21,2,21,4],[21,5,21,8],[21,9,21,14],[21,15,21,16],[21,17,21,28],[21,29,21,31],[21,32,21,34],[21,35,21,37],[20,0,20,1],[20,2,20,4],[20,5,20,8],[20,9,20,14],[20,15,20,16],[20,17,20,28],[20,29,20,31],[20,32,20,34],[20,35,20,37],[18,29,18,31],[18,32,18,34],[18,35,18,37],[19,0,19,1],[19,2,19,4],[19,5,19,8],[19,9,19,14],[19,15,19,16],[19,17,19,28],[19,29,19,31],[18,0,18,1],[18,2,18,4],[18,5,18,8],[18,9,18,14],[18,15,18,16],[18,17,18,28],[19,32,19,34],[19,35,19,37],[17,0,17,1],[17,2,17,4],[17,5,17,8],[17,9,17,14],[17,15,17,16],[17,17,17,28],[17,29,17,31],[17,32,17,34],[17,35,17,37],[16,0,16,1],[16,2,16,4],[16,5,16,8],[16,9,16,14],[16,15,16,16],[16,17,16,28],[16,29,16,31],[16,32,16,34],[16,35,16,37],[14,29,14,31],[14,32,14,34],[14,35,14,37],[15,0,15,1],[15,2,15,4],[15,5,15,8],[15,9,15,14],[15,15,15,16],[15,17,15,28],[15,29,15,31],[14,0,14,1],[14,2,14,4],[14,5,14,8],[14,9,14,14],[14,15,14,16],[14,17,14,28],[15,32,15,34],[15,35,15,37],[13,0,13,1],[13,2,13,4],[13,5,13,8],[13,9,13,14],[13,15,13,16],[13,17,13,28],[13,29,13,31],[13,32,13,34],[13,35,13,37],[12,0,12,1],[12,2,12,4],[12,5,12,8],[12,9,12,14],[12,15,12,16],[12,17,12,28],[12,29,12,31],[12,32,12,34],[12,35,12,37],[10,29,10,31],[10,32,10,34],[10,35,10,37],[11,0,11,1],[11,2,11,4],[11,5,11,8],[11,9,11,14],[11,15,11,16],[11,17,11,28],[11,29,11,31],[10,0,10,1],[10,2,10,4],[10,5,10,8],[10,9,10,14],[10,15,10,16],[10,17,10,28],[11,32,11,34],[11,35,11,37],[9,0,9,1],[9,2,9,4],[9,5,9,8],[9,9,9,14],[9,15,9,16],[9,17,9,28],[9,29,9,31],[9,32,9,34],[9,35,9,37],[8,0,8,1],[8,2,8,4],[8,5,8,8],[8,9,8,14],[8,15,8,16],[8,17,8,28],[8,29,8,31],[8,32,8,34],[8,35,8,37],[6,29,6,31],[6,32,6,34],[6,35,6,37],[7,0,7,1],[7,2,7,4],[7,5,7,8],[7,9,7,14],[7,15,7,16],[7,17,7,28],[7,29,7,31],[6,0,6,1],[6,2,6,4],[6,5,6,8],[6,9,6,14],[6,15,6,16],[6,17,6,28],[7,32,7,34],[7,35,7,37],[4,0,4,37],[5,0,5,1],[5,2,5,4],[5,5,5,8],[5,9,5,14],[5,15,5,16],[5,17,5,28],[5,29,5,31],[5,32,5,34],[5,35,5,37],[3,0,3,3],[3,4,3,14],[3,15,3,16],[3,17,3,27],[3,28,3,31],[3,32,3,37],[0,0,0,34],[0,35,0,37],[1,0,1,37],[2,0,2,2],[2,3,2,21],[2,22,2,25],[2,26,2,29],[2,30,2,33],[2,34,2,37]]}
["Application Development Team (ADT) Support Form",null,null,null,null,null,null,null,null,null,null,null,null,null,null,null,null,null,null,null,null,null,null,null,null,null,null,null,null,null,null,null,null,null,null,{"$f":"'Formula Allocation Application'!AJ1","v":"Rev. 10/28/24"}]
["Please complete the \"yellow\" cells in the form below and email a copy to: PLHA@hcd.ca.gov. A member of the Application Development Team will respond to your request within ASAP. "]
["Full Name:",null,null,null,null,null,null,null,null,null,null,null,null,null,null,null,null,null,null,null,null,null,"Date Requested:",null,null,null,null,null,null,null,"Application Version Date:"]
["Organization:",null,null,null,null,null,null,null,null,null,null,null,null,null,null,"Email:",null,null,null,null,null,null,null,null,null,null,null,null,"Contact Phone:"]
[]
["Issue #",null,"Program Name & Round",null,null,"Tab",null,null,null,"Section",null,null,null,null,null,"Cell#",null,"Update/Comment",null,null,null,null,null,null,null,null,null,null,null,"Urgency ",null,null,"ADT Status",null,null,"Status Date",null,null,"Requestor","Email","Phone","App Version"]
[1,null,"PLHA Supp App",null,null,null,null,null,null,null,null,null,null,null,null,null,null,null,null,null,null,null,null,null,null,null,null,null,null,null,null,null,null,null,null,null,null,null,{"$f":"IF(C7=\"\",\"\",$D$3)","v":0},{"$f":"IF(C7=\"\",\"\",$R$4)","v":0},{"$f":"IF(C7=\"\",\"\",$AG$4)","v":0},{"$f":"IF(C7=\"\",\"\",$AI$3)","v":"00:00:00"}]
[2,null,"PLHA Supp App",null,null,null,null,null,null,null,null,null,null,null,null,null,null,null,null,null,null,null,null,null,null,null,null,null,null,null,null,null,null,null,null,null,null,null,0,0,{"$f":"IF(C8=\"\",\"\",$AG$4)","v":0},{"$f":"IF(C8=\"\",\"\",$AI$3)","v":"00:00:00"}]
[3,null,"PLHA Supp App",null,null,null,null,null,null,null,null,null,null,null,null,null,null,null,null,null,null,null,null,null,null,null,null,null,null,null,null,null,null,null,null,null,null,null,0,0,{"$f":"IF(C9=\"\",\"\",$AG$4)","v":0},{"$f":"IF(C9=\"\",\"\",$AI$3)","v":"00:00:00"}]
[4,null,"PLHA Supp App",null,null,null,null,null,null,null,null,null,null,null,null,null,null,null,null,null,null,null,null,null,null,null,null,null,null,null,null,null,null,null,null,null,null,null,0,0,{"$f":"IF(C10=\"\",\"\",$AG$4)","v":0},{"$f":"IF(C10=\"\",\"\",$AI$3)","v":"00:00:00"}]
[5,null,"PLHA Supp App",null,null,null,null,null,null,null,null,null,null,null,null,null,null,null,null,null,null,null,null,null,null,null,null,null,null,null,null,null,null,null,null,null,null,null,0,0,{"$f":"IF(C11=\"\",\"\",$AG$4)","v":0},{"$f":"IF(C11=\"\",\"\",$AI$3)","v":"00:00:00"}]
[6,null,"PLHA Supp App",null,null,null,null,null,null,null,null,null,null,null,null,null,null,null,null,null,null,null,null,null,null,null,null,null,null,null,null,null,null,null,null,null,null,null,0,0,0,"00:00:00"]
[7,null,"PLHA Supp App",null,null,null,null,null,null,null,null,null,null,null,null,null,null,null,null,null,null,null,null,null,null,null,null,null,null,null,null,null,null,null,null,null,null,null,0,0,0,"00:00:00"]
[8,null,"PLHA Supp App",null,null,null,null,null,null,null,null,null,null,null,null,null,null,null,null,null,null,null,null,null,null,null,null,null,null,null,null,null,null,null,null,null,null,null,0,0,0,"00:00:00"]
[9,null,"PLHA Supp App",null,null,null,null,null,null,null,null,null,null,null,null,null,null,null,null,null,null,null,null,null,null,null,null,null,null,null,null,null,null,null,null,null,null,null,0,0,0,"00:00:00"]
[10,null,"PLHA Supp App",null,null,null,null,null,null,null,null,null,null,null,null,null,null,null,null,null,null,null,null,null,null,null,null,null,null,null,null,null,null,null,null,null,null,null,0,0,0,"00:00:00"]
[11,null,"PLHA Supp App",null,null,null,null,null,null,null,null,null,null,null,null,null,null,null,null,null,null,null,null,null,null,null,null,null,null,null,null,null,null,null,null,null,null,null,0,0,0,"00:00:00"]
[12,null,"PLHA Supp App",null,null,null,null,null,null,null,null,null,null,null,null,null,null,null,null,null,null,null,null,null,null,null,null,null,null,null,null,null,null,null,null,null,null,null,0,0,0,"00:00:00"]
[13,null,"PLHA Supp App",null,null,null,null,null,null,null,null,null,null,null,null,null,null,null,null,null,null,null,null,null,null,null,null,null,null,null,null,null,null,null,null,null,null,null,0,0,0,"00:00:00"]
[14,null,"PLHA Supp App",null,null,null,null,null,null,null,null,null,null,null,null,null,null,null,null,null,null,null,null,null,null,null,null,null,null,null,null,null,null,null,null,null,null,null,0,0,0,"00:00:00"]
[15,null,"PLHA Supp App",null,null,null,null,null,null,null,null,null,null,null,null,null,null,null,null,null,null,null,null,null,null,null,null,null,null,null,null,null,null,null,null,null,null,null,0,0,0,"00:00:00"]
[16,null,"PLHA Supp App",null,null,null,null,null,null,null,null,null,null,null,null,null,null,null,null,null,null,null,null,null,null,null,null,null,null,null,null,null,null,null,null,null,null,null,0,0,0,"00:00:00"]
[17,null,"PLHA Supp App",null,null,null,null,null,null,null,null,null,null,null,null,null,null,null,null,null,null,null,null,null,null,null,null,null,null,null,null,null,null,null,null,null,null,null,0,0,0,"00:00:00"]
[18,null,"PLHA Supp App",null,null,null,null,null,null,null,null,null,null,null,null,null,null,null,null,null,null,null,null,null,null,null,null,null,null,null,null,null,null,null,null,null,null,null,0,0,0,"00:00:00"]
[19,null,"PLHA Supp App",null,null,null,null,null,null,null,null,null,null,null,null,null,null,null,null,null,null,null,null,null,null,null,null,null,null,null,null,null,null,null,null,null,null,null,0,0,0,"00:00:00"]
[20,null,"PLHA Supp App",null,null,null,null,null,null,null,null,null,null,null,null,null,null,null,null,null,null,null,null,null,null,null,null,null,null,null,null,null,null,null,null,null,null,null,0,0,0,"00:00:00"]
[21,null,"PLHA Supp App",null,null,null,null,null,null,null,null,null,null,null,null,null,null,null,null,null,null,null,null,null,null,null,null,null,null,null,null,null,null,null,null,null,null,null,0,0,0,"00:00:00"]
[22,null,"PLHA Supp App",null,null,null,null,null,null,null,null,null,null,null,null,null,null,null,null,null,null,null,null,null,null,null,null,null,null,null,null,null,null,null,null,null,null,null,0,0,0,"00:00:00"]
[23,null,"PLHA Supp App",null,null,null,null,null,null,null,null,null,null,null,null,null,null,null,null,null,null,null,null,null,null,null,null,null,null,null,null,null,null,null,null,null,null,null,0,0,0,"00:00:00"]
[24,null,"PLHA Supp App",null,null,null,null,null,null,null,null,null,null,null,null,null,null,null,null,null,null,null,null,null,null,null,null,null,null,null,null,null,null,null,null,null,null,null,0,0,0,"00:00:00"]
[25,null,"PLHA Supp App",null,null,null,null,null,null,null,null,null,null,null,null,null,null,null,null,null,null,null,null,null,null,null,null,null,null,null,null,null,null,null,null,null,null,null,0,0,0,"00:00:00"]
[]
["End of Document"]

{"sheet":"DATA","index":6,"n_rows":355,"n_cols":22,"rows_kept":355,"cut":false,"hidden":true,"merged":[]}
[]
["Entitlement","2019 Allocations","2020 Allocations","2021 Allocations","2022 Allocations","2023 Allocations",null,"Entitlement","NonEntitlement",null,null,"Plan Activity 1 Dropdowns","Plan Activity 2 Dropdowns","Plan Activity 3 Dropdowns","Plan Activity 4 Dropdowns","Plan Activity 5 Dropdowns","Plan Activity 6 Dropdowns","Plan Activity 7 Dropdowns","Plan Activity 8 Dropdowns","Plan Activity 9 Dropdowns","Plan Activity 10 Dropdowns","Allocation %"]
["Alameda","n/a","n/a","n/a",479024,367156,null,"Alameda","American Canyon",null,null,"Predevelopment of Affordable Rental Housing","Predevelopment of Rental/Ownership Housing","Matching portions of funds placed into Local or Regional Housing Trust Funds","Matching portions of funds available through the L&M Income Housing Asset Fund","Capitalized Reserves for Services connected to the preservation and creation of Permanent Supportive Housing","Rapid Rehousing","Accessibility modifications in Lower-income Owner-Occupied Housing","Efforts to acquire and rehabilitate foreclosed or vacant homes and apartments","Homebuyer Assistance","Fiscal Incentives",0.01]
["Alameda County","n/a","n/a","n/a",800595,613629,null,"Alameda County","Arcata",null,null,"New Construction of Affordable Rental Housing","Development of Rental/Ownership Housing",null,null,null,"Rental Assistance",null,null,null,null,0.02]
["Alhambra","n/a","n/a",796443,399179,305957,null,"Alhambra","Arvin",null,null,"Acquisition of Affordable Rental Housing","Acquisition of Rental/Ownership Housing",null,null,null,"Street Outreach",null,null,null,null,0.03]
["Aliso Viejo","n/a","n/a","n/a","n/a",78309,null,"Aliso Viejo","Atwater",null,null,"Rehabilitation of Affordable Rental Housing","Rehabilitation of Rental/Ownership Housing",null,null,null,"Operating and Capital Costs for Navigation Centers",null,null,null,null,0.04]
["Anaheim","n/a","n/a",3686550,1847709,1416205,null,"Anaheim","Avenal",null,null,"Preservation of Affordable Rental Housing","Preservation of Rental/Ownership Housing",null,null,null,"Operating and Capital Costs for Emergency Shelters",null,null,null,null,0.05]
["Antioch","n/a","n/a","n/a","n/a",259046,null,"Antioch","Benicia",null,null,"Predevelopment of Residential live-work","Predevelopment of Accessory Dwelling Units",null,null,null,"Development of Permanent Supportive Housing",null,null,null,null,0.06]
["Apple Valley","n/a","n/a","n/a",246524,188952,null,"Apple Valley","Bishop",null,null,"Development of Residential live-work","Development of Accessory Dwelling Units",null,null,null,"Rehabilitation of Permanent Supportive Housing",null,null,null,null,7.0000000000000007E-2]
["Bakersfield","n/a","n/a",2960656,1483889,1137350,null,"Bakersfield","Brawley",null,null,"Acquisition of Residential live-work","Acquisition of Accessory Dwelling Units",null,null,null,"Preservation of Permanent Supportive Housing",null,null,null,null,0.08]
["Baldwin Park","n/a","n/a","n/a","n/a",320775,null,"Baldwin Park","Butte County",null,null,"Rehabilitation of Residential live-work","Rehabilitation of Accessory Dwelling Units",null,null,null,"Development of Transitional Housing",null,null,null,null,0.09]
["Bellflower","n/a","n/a","n/a","n/a",337495,null,"Bellflower","Calaveras County",null,null,"Preservation of Residential live-work","Preservation of Accessory Dwelling Units",null,null,null,"Rehabilitation of Transitional Housing",null,null,null,null,0.1]
["Berkeley","n/a","n/a","n/a","n/a",849995,null,"Berkeley","Calexico",null,null,"Operating Subsidies","Rehabilitation of Owner-Occupied Housing",null,null,null,"Preservation of Transitional Housing",null,null,null,null,0.11]
["Buena Park","n/a","n/a","n/a","n/a",242623,null,"Buena Park","Calipatria",null,null,null,null,null,null,null,"Supportive/Case Management Services",null,null,null,null,0.12]
["Burbank","n/a","n/a","n/a","n/a",313549,null,"Burbank","Calistoga",null,null,null,null,null,null,null,"Operating Costs for Permanent Supportive Housing",null,null,null,null,0.13]
["Camarillo","n/a","n/a","n/a","n/a",88939,null,"Camarillo","Capitola",null,null,null,null,null,null,null,null,null,null,null,null,0.14000000000000001]
["Carlsbad","n/a","n/a","n/a",233683,179110,null,"Carlsbad","Carmel-by-the-Sea",null,null,null,null,null,null,null,null,null,null,null,null,0.15]
["Carson","n/a","n/a",709383,355545,272513,null,"Carson","Chowchilla",null,null,null,null,null,null,null,null,null,null,null,null,0.16]
["Cathedral City","n/a","n/a",484445,242805,186101,null,"Cathedral City","Clearlake",null,null,null,null,null,null,null,null,null,null,null,null,0.17]
["Cerritos","n/a",169751,186806,93627,71762,null,"Chico","Coalinga",null,null,null,null,null,null,null,null,null,null,null,null,0.18]
["Chico","n/a","n/a","n/a",334642,256491,null,"Chino Hills","Corcoran",null,null,null,null,null,null,null,null,null,null,null,null,0.19]
["Chino","n/a",387590,426531,213778,163854,null,"Chula Vista","Crescent City",null,null,null,null,null,null,null,null,null,null,null,null,0.2]
["Chino Hills","n/a","n/a",303241,151985,116491,null,"Citrus Heights","Del Norte County",null,null,null,null,null,null,null,null,null,null,null,null,0.21]
["Chula Vista","n/a","n/a","n/a",908287,696170,null,"Clovis City","Dinuba",null,null,null,null,null,null,null,null,null,null,null,null,0.22]
["Citrus Heights","n/a","n/a","n/a",268126,205509,null,"Concord","Dorris",null,null,null,null,null,null,null,null,null,null,null,null,0.23]
["Clovis City","n/a","n/a","n/a",313434,240236,null,"Contra Costa County","Dunsmuir",null,null,null,null,null,null,null,null,null,null,null,null,0.24]
["Compton","n/a",1196383,1316582,659875,505771,null,"Corona","El Centro (Colonia Only)",null,null,null,null,null,null,null,null,null,null,null,null,0.25]
["Concord","n/a","n/a",836053,419032,321173,null,"Costa Mesa","El Dorado County",null,null,null,null,null,null,null,null,null,null,null,null,0.26]
["Contra Costa County","n/a","n/a","n/a",1860477,1425991,null,"Cupertino City","Etna",null,null,null,null,null,null,null,null,null,null,null,null,0.27]
["Corona","n/a","n/a",995498,498946,382425,null,"Daly City","Eureka",null,null,null,null,null,null,null,null,null,null,null,null,0.28000000000000003]
["Costa Mesa","n/a","n/a",904122,453148,347322,null,"Davis","Exeter",null,null,null,null,null,null,null,null,null,null,null,null,0.28999999999999998]
["Cupertino City","n/a","n/a","n/a",141890,108754,null,"Delano City","Farmersville",null,null,null,null,null,null,null,null,null,null,null,null,0.3]
["Daly City","n/a","n/a","n/a",438780,336310,null,"Downey","Fort Bragg",null,null,null,null,null,null,null,null,null,null,null,null,0.31]
["Davis","n/a","n/a","n/a","n/a",199046,null,"El Cajon","Fort Jones",null,null,null,null,null,null,null,null,null,null,null,null,0.32]
["Delano City","n/a","n/a",556115,278726,213634,null,"El Centro","Fowler",null,null,null,null,null,null,null,null,null,null,null,null,0.33]
["Downey","n/a","n/a",889923,446031,341868,null,"El Monte","Glenn County",null,null,null,null,null,null,null,null,null,null,null,null,0.34]
["El Cajon","n/a","n/a","n/a","n/a",424070,null,"Elk Grove","Grass Valley",null,null,null,null,null,null,null,null,null,null,null,null,0.35]
["El Centro","n/a","n/a","n/a","n/a",161642,null,"Encinitas","Greenfield",null,null,null,null,null,null,null,null,null,null,null,null,0.36]
["El Monte","n/a","n/a","n/a",726377,556743,null,"Fairfield","Grover Beach",null,null,null,null,null,null,null,null,null,null,null,null,0.37]
["Elk Grove","n/a","n/a","n/a",377026,288977,null,"Fontana","Gustine",null,null,null,null,null,null,null,null,null,null,null,null,0.38]
["Encinitas","n/a","n/a","n/a",133775,102534,null,"Fountain Valley","Hollister",null,null,null,null,null,null,null,null,null,null,null,null,0.39]
["Escondido","n/a",1310146,1441775,722621,553864,null,"Fremont","Holtville",null,null,null,null,null,null,null,null,null,null,null,null,0.4]
["Fairfield","n/a","n/a","n/a","n/a",256861,null,"Fresno","Humboldt County",null,null,null,null,null,null,null,null,null,null,null,null,0.41]
["Fontana","n/a","n/a","n/a",841109,644681,null,"Fresno County","Huron",null,null,null,null,null,null,null,null,null,null,null,null,0.42]
["Fountain Valley","n/a","n/a","n/a",123971,95020,null,"Fullerton","Imperial",null,null,null,null,null,null,null,null,null,null,null,null,0.43]
["Fremont","n/a","n/a","n/a",549661,421296,null,"Garden Grove","Inyo County",null,null,null,null,null,null,null,null,null,null,null,null,0.44]
["Fresno","n/a","n/a","n/a",2921311,2239084,null,"Gardena","King City",null,null,null,null,null,null,null,null,null,null,null,null,0.45]
["Fresno County","n/a","n/a","n/a",1408829,1079819,null,"Gilroy City","Kings County",null,null,null,null,null,null,null,null,null,null,null,null,0.46]
["Fullerton","n/a","n/a",1177577,590205,452372,null,"Glendale","Lake County",null,null,null,null,null,null,null,null,null,null,null,null,0.47]
["Garden Grove","n/a","n/a","n/a","n/a",653368,null,"Glendora City","Lakeport",null,null,null,null,null,null,null,null,null,null,null,null,0.48]
["Gardena","n/a","n/a","n/a",282801,216757,null,"Goleta","Lassen County",null,null,null,null,null,null,null,null,null,null,null,null,0.49]
["Gilroy City","n/a","n/a","n/a",209401,160499,null,"Hanford","Lindsay",null,null,null,null,null,null,null,null,null,null,null,null,0.5]
["Glendale","n/a","n/a","n/a","n/a",569709,null,"Hawthorne","Livingston",null,null,null,null,null,null,null,null,null,null,null,null,0.51]
["Glendora City","n/a","n/a","n/a","n/a",85590,null,"Hayward","Los Banos",null,null,null,null,null,null,null,null,null,null,null,null,0.52]
["Goleta","n/a","n/a","n/a",80598,61776,null,"Hemet","Madera County",null,null,null,null,null,null,null,null,null,null,null,null,0.53]
["Hanford","n/a","n/a","n/a",253302,194147,null,"Huntington Beach","Mammoth Lakes",null,null,null,null,null,null,null,null,null,null,null,null,0.54]
["Hawthorne","n/a","n/a","n/a","n/a",402674,null,"Huntington Park","Marina",null,null,null,null,null,null,null,null,null,null,null,null,0.55000000000000004]
["Hayward","n/a","n/a","n/a","n/a",428245,null,"Indio City","Mariposa County",null,null,null,null,null,null,null,null,null,null,null,null,0.56000000000000005]
["Hemet","n/a","n/a",688525,345090,264500,null,"Inglewood","Marysville",null,null,null,null,null,null,null,null,null,null,null,null,0.56999999999999995]
["Hesperia","n/a",786135,865117,433599,332338,null,"Irvine","McFarland",null,null,null,null,null,null,null,null,null,null,null,null,0.57999999999999996]
["Huntington Beach","n/a","n/a",938184,470220,360407,null,"Kern County","Mendocino County",null,null,null,null,null,null,null,null,null,null,null,null,0.59]
["Huntington Park","n/a","n/a","n/a","n/a",428208,null,"La Habra","Merced County",null,null,null,null,null,null,null,null,null,null,null,null,0.6]
["Indio City","n/a","n/a",779909,390892,299605,null,"La Mesa","Mono County",null,null,null,null,null,null,null,null,null,null,null,null,0.61]
["Inglewood","n/a","n/a","n/a","n/a",483467,null,"Laguna Niguel","Montague",null,null,null,null,null,null,null,null,null,null,null,null,0.62]
["Irvine","n/a","n/a","n/a","n/a",498055,null,"Lake Elsinore","Mount Shasta",null,null,null,null,null,null,null,null,null,null,null,null,0.63]
["Kern County","n/a","n/a",3695204,1852046,1419530,null,"Lake Forest","Napa County",null,null,null,null,null,null,null,null,null,null,null,null,0.64]
["La Habra","n/a","n/a","n/a",333372,255518,null,"Lakewood","Nevada City",null,null,null,null,null,null,null,null,null,null,null,null,0.65]
["La Mesa","n/a","n/a","n/a","n/a",124064,null,"Lancaster","Nevada County",null,null,null,null,null,null,null,null,null,null,null,null,0.66]
["Laguna Niguel","n/a","n/a","n/a","n/a",100806,null,"Livermore","Orange Cove",null,null,null,null,null,null,null,null,null,null,null,null,0.67]
["Lake Elsinore","n/a","n/a",425098,213060,163303,null,"Lodi","Orland",null,null,null,null,null,null,null,null,null,null,null,null,0.68]
["Lake Forest","n/a","n/a","n/a","n/a",145261,null,"Long Beach","Oroville",null,null,null,null,null,null,null,null,null,null,null,null,0.69]
["Lakewood","n/a","n/a","n/a","n/a",177970,null,"Los Angeles","Pacific Grove",null,null,null,null,null,null,null,null,null,null,null,null,0.7]
["Lancaster","n/a","n/a","n/a",595694,456579,null,"Los Angeles County","Parlier",null,null,null,null,null,null,null,null,null,null,null,null,0.71]
["Livermore","n/a","n/a","n/a","n/a",137029,null,"Lynwood","Pismo Beach",null,null,null,null,null,null,null,null,null,null,null,null,0.72]
["Lodi","n/a","n/a","n/a",288277,220955,null,"Madera","Placer County",null,null,null,null,null,null,null,null,null,null,null,null,0.73]
["Lompoc","n/a",352871,388324,194629,149176,null,"Marin County","Placerville",null,null,null,null,null,null,null,null,null,null,null,null,0.74]
["Long Beach","n/a","n/a","n/a","n/a",1923146,null,"Menifee","Plumas County",null,null,null,null,null,null,null,null,null,null,null,null,0.75]
["Los Angeles","n/a","n/a","n/a",22477835,17228487,null,"Merced","Point Arena",null,null,null,null,null,null,null,null,null,null,null,null,0.76]
["Los Angeles County","n/a","n/a","n/a",9451755,7244444,null,"Milpitas City","Rancho Mirage",null,null,null,null,null,null,null,null,null,null,null,null,0.77]
["Lynwood","n/a",981371,1079969,541283,414875,null,"Mission Viejo","Red Bluff",null,null,null,null,null,null,null,null,null,null,null,null,0.78]
["Madera","n/a","n/a","n/a",362050,277499,null,"Modesto","Riverbank",null,null,null,null,null,null,null,null,null,null,null,null,0.79]
["Marin County","n/a","n/a","n/a",622026,476762,null,"Montebello","San Benito County",null,null,null,null,null,null,null,null,null,null,null,null,0.8]
["Menifee","n/a","n/a","n/a","n/a",165325,null,"Monterey","San Joaquin",null,null,null,null,null,null,null,null,null,null,null,null,0.81]
["Merced","n/a","n/a","n/a",444694,340842,null,"Monterey County","San Juan Bautista",null,null,null,null,null,null,null,null,null,null,null,null,0.82]
["Milpitas City","n/a","n/a","n/a",204545,156777,null,"Monterey Park","San Juan Capistrano",null,null,null,null,null,null,null,null,null,null,null,null,0.83]
["Mission Viejo","n/a","n/a","n/a","n/a",135808,null,"Moreno Valley","Sand City",null,null,null,null,null,null,null,null,null,null,null,null,0.84]
["Modesto","n/a","n/a","n/a",831356,637206,null,"Mountain View","Santa Cruz County",null,null,null,null,null,null,null,null,null,null,null,null,0.85]
["Montebello","n/a","n/a","n/a","n/a",208137,null,"Napa City","Scotts Valley",null,null,null,null,null,null,null,null,null,null,null,null,0.86]
["Monterey","n/a","n/a","n/a",99805,76497,null,"National City","Shasta County",null,null,null,null,null,null,null,null,null,null,null,null,0.87]
["Monterey County","n/a","n/a","n/a",555851,426041,null,"Newport Beach","Shasta Lake",null,null,null,null,null,null,null,null,null,null,null,null,0.88]
["Monterey Park","n/a","n/a","n/a",273366,209525,null,"Norwalk","Sierra County",null,null,null,null,null,null,null,null,null,null,null,null,0.89]
["Moreno Valley","n/a","n/a",1761457,882847,676672,null,"Oakland","Siskiyou County",null,null,null,null,null,null,null,null,null,null,null,null,0.9]
["Mountain View","n/a","n/a","n/a",219939,168576,null,"Oceanside","Solano County",null,null,null,null,null,null,null,null,null,null,null,null,0.91]
["Napa City","n/a","n/a","n/a",272799,209091,null,"Ontario","Soledad",null,null,null,null,null,null,null,null,null,null,null,null,0.92]
["National City","n/a","n/a","n/a",337079,258360,null,"Orange","Sonora",null,null,null,null,null,null,null,null,null,null,null,null,0.93]
["Newport Beach","n/a","n/a","n/a","n/a",111450,null,"Orange County","South Lake Tahoe",null,null,null,null,null,null,null,null,null,null,null,null,0.94]
["Norwalk","n/a","n/a","n/a","n/a",389495,null,"Oxnard","St. Helena",null,null,null,null,null,null,null,null,null,null,null,null,0.95]
["Oakland","n/a","n/a","n/a",3175817,2434155,null,"Palm Desert","Susanville",null,null,null,null,null,null,null,null,null,null,null,null,0.96]
["Oceanside","n/a","n/a","n/a","n/a",426547,null,"Palm Springs","Sutter Creek",null,null,null,null,null,null,null,null,null,null,null,null,0.97]
["Ontario","n/a","n/a","n/a",788724,604530,null,"Palmdale","Tehama",null,null,null,null,null,null,null,null,null,null,null,null,0.98]
["Orange","n/a","n/a","n/a","n/a",399168,null,"Palo Alto","Tehama County",null,null,null,null,null,null,null,null,null,null,null,null,0.99]
["Orange County","n/a","n/a",2175998,1090616,835919,null,"Paradise","Trinity County",null,null,null,null,null,null,null,null,null,null,null,null,1]
["Oxnard","n/a","n/a","n/a","n/a",761186,null,"Paramount City","Truckee"]
["Palm Desert","n/a","n/a","n/a","n/a",112562,null,"Pasadena","Tulare County"]
["Palm Springs","n/a","n/a",328816,164803,126316,null,"Perris City","Tulelake"]
["Palmdale","n/a","n/a",1332565,667885,511911,null,"Petaluma","Tuolumne County"]
["Palo Alto","n/a","n/a","n/a",198460,152112,null,"Pico Rivera","Ukiah"]
["Paradise","n/a","n/a","n/a",80239,61500,null,"Pittsburg","Vernon"]
["Paramount City","n/a","n/a","n/a","n/a",287932,null,"Placentia","Wasco"]
["Pasadena","n/a","n/a","n/a","n/a",615081,null,"Pleasanton City","Weed"]
["Perris City","n/a",725136,797990,399954,306551,null,"Pomona","Willits"]
["Petaluma","n/a","n/a","n/a","n/a",121138,null,"Porterville","Winters"]
["Pico Rivera","n/a","n/a","n/a","n/a",222734,null,"Rancho Cordova City","Woodlake"]
["Pittsburg","n/a","n/a",543387,272347,208744,null,"Rancho Cucamonga","Yolo County"]
["Placentia","n/a","n/a","n/a","n/a",141124,null,"Rancho Santa Margarita","Yountville"]
["Pleasanton City","n/a","n/a","n/a",129527,99278,null,"Redding","Yreka"]
["Pomona","n/a","n/a","n/a",915970,702059,null,"Redondo Beach","Yuba County"]
["Porterville","n/a","n/a","n/a",293840,225218,null,"Redwood City"]
["Rancho Cordova City","n/a","n/a","n/a",244642,187510,null,"Riverside"]
["Rancho Cucamonga","n/a","n/a","n/a",386189,296001,null,"Riverside County"]
["Rancho Santa Margarita","n/a","n/a",173436,86926,66626,null,"Rocklin City"]
["Redding","n/a","n/a","n/a","n/a",221315,null,"Rosemead"]
["Redondo Beach","n/a","n/a","n/a",112160,85966,null,"Roseville"]
["Redwood City","n/a","n/a","n/a","n/a",228481,null,"Sacramento"]
["Rialto","n/a",929145,1022495,512477,392796,null,"Sacramento County"]
["Riverside","n/a","n/a","n/a",1390635,1065874,null,"Salinas"]
["Riverside County","n/a","n/a",6835329,3425886,2625824,null,"San Bernardino"]
["Rocklin City","n/a","n/a","n/a","n/a",88469,null,"San Bernardino County"]
["Rosemead","n/a","n/a","n/a",294255,225536,null,"San Buenaventura"]
["Roseville","n/a","n/a","n/a","n/a",205908,null,"San Clemente"]
["Sacramento","n/a","n/a","n/a","n/a",1548793,null,"San Diego"]
["Sacramento County","n/a","n/a","n/a",2332543,1787814,null,"San Diego County"]
["Salinas","n/a","n/a","n/a",863162,661584,null,"San Francisco"]
["San Bernardino","n/a","n/a","n/a","n/a",1065809,null,"San Joaquin County"]
["San Bernardino County","n/a","n/a","n/a",2965495,2272949,null,"San Jose"]
["San Buenaventura","n/a","n/a","n/a","n/a",234868,null,"San Leandro"]
["San Clemente","n/a","n/a","n/a","n/a",124215,null,"San Luis Obispo County"]
["San Diego","n/a","n/a","n/a","n/a",3804642,null,"San Marcos City"]
["San Diego County","n/a","n/a","n/a",1697409,1301006,null,"San Mateo"]
["San Francisco","n/a","n/a","n/a",7473904,5728490,null,"San Mateo County"]
["San Joaquin County","n/a","n/a","n/a",1123219,860908,null,"Santa Ana"]
["San Jose","n/a","n/a","n/a",3728060,2857429,null,"Santa Barbara"]
["San Leandro","n/a","n/a","n/a",300018,229953,null,"Santa Barbara County"]
["San Luis Obispo County","n/a","n/a","n/a",747989,573308,null,"Santa Clara"]
["San Marcos City","n/a","n/a","n/a","n/a",209727,null,"Santa Clara County"]
["San Mateo","n/a","n/a","n/a","n/a",224653,null,"Santa Cruz"]
["San Mateo County","n/a","n/a","n/a",1036938,794777,null,"Santa Maria"]
["Santa Ana","n/a","n/a","n/a","n/a",1842273,null,"Santa Monica"]
["Santa Barbara","n/a","n/a","n/a",388447,297731,null,"Santa Rosa"]
["Santa Barbara County","n/a","n/a","n/a","n/a",374398,null,"Seaside"]
["Santa Clara","n/a","n/a","n/a",411064,315066,null,"Simi Valley"]
["Santa Clara County","n/a","n/a","n/a",631595,484096,null,"Sonoma County"]
["Santa Clarita","n/a",914338,1006200,504310,386536,null,"South Gate"]
["Santa Cruz","n/a","n/a","n/a","n/a",173959,null,"South San Francisco"]
["Santa Maria","n/a","n/a","n/a","n/a",481953,null,"Stanislaus County"]
["Santa Monica","n/a","n/a","n/a",469381,359765,null,"Stockton"]
["Santa Rosa","n/a","n/a","n/a","n/a",456230,null,"Sunnyvale"]
["Santee","n/a",208859,229843,115198,88295,null,"Temecula"]
["Seaside","n/a","n/a","n/a",165564,126899,null,"Thousand Oaks"]
["Simi Valley","n/a","n/a","n/a","n/a",190789,null,"Torrance"]
["Sonoma County","n/a","n/a","n/a",771043,590977,null,"Tulare"]
["South Gate","n/a","n/a",1233796,618382,473968,null,"Turlock"]
["South San Francisco","n/a","n/a","n/a",186873,143232,null,"Tustin"]
["Stanislaus County","n/a","n/a",1975561,990157,758921,null,"Union City"]
["Stockton","n/a","n/a","n/a",1467196,1124555,null,"Upland"]
["Sunnyvale","n/a","n/a","n/a",456956,350241,null,"Vacaville"]
["Temecula","n/a","n/a",467631,234378,179642,null,"Vallejo"]
["Thousand Oaks","n/a","n/a",506368,253793,194523,null,"Ventura County"]
["Torrance","n/a","n/a","n/a","n/a",291992,null,"Victorville"]
["Tulare","n/a","n/a","n/a",272990,209238,null,"Visalia"]
["Turlock","n/a","n/a","n/a",265636,203601,null,"Vista"]
["Tustin","n/a","n/a","n/a","n/a",253336,null,"Walnut Creek"]
["Union City","n/a","n/a","n/a","n/a",166857,null,"Watsonville"]
["Upland","n/a",431845,475232,238187,182562,null,"Westminster"]
["Vacaville","n/a","n/a","n/a",206179,158029,null,"Whittier"]
["Vallejo","n/a","n/a","n/a",433249,332070,null,"Woodland"]
["Ventura County","n/a","n/a","n/a",737056,564928,null,"Yorba Linda"]
["Victorville","n/a","n/a","n/a",542468,415783,null,"Yuba City"]
["Visalia","n/a","n/a",1078990,540793,414499]
["Vista","n/a","n/a","n/a","n/a",268670]
["Walnut Creek","n/a","n/a","n/a","n/a",90972]
["Watsonville","n/a","n/a","n/a",310781,238203]
["West Covina","n/a",604258,664967,333283,255450]
["West Sacramento","n/a",367872,404832,202903,155518]
["Westminster","n/a","n/a",873327,437714,335493]
["Whittier","n/a","n/a","n/a",328505,251788]
["Woodland","n/a","n/a","n/a","n/a",163607]
["Yorba Linda","n/a","n/a","n/a","n/a",69999]
["Yuba City","n/a","n/a","n/a","n/a",204445]
["Entitlement Total",{"$f":"SUBTOTAL(109,B3:B189)","v":0},{"$f":"SUBTOTAL(109,C3:C189)","v":9365700},50420250,114899003,114840110]
["Non-Entitlement","2019 Allocations","2020 Allocations","2021 Allocations","2022 Allocations","2023 Allocations"]
["Alpine County","n/a",106216,116768,57959,43467]
["Alturas","n/a",123577,128224,63112,48072]
["Amador City","n/a",100869,112445,56885,43138]
["Amador County","n/a",203299,275316,135904,89916]
["American Canyon","n/a","n/a","n/a",97199,67623]
["Anderson","n/a",163160,178480,90221,70912]
["Angels","n/a",127049,128764,70091,54467]
["Arcata","n/a","n/a","n/a",107399,76577]
["Artesia","n/a",204479,213605,102568,79866]
["Arvin","n/a","n/a","n/a","n/a",83886]
["Atwater","n/a","n/a","n/a",139339,103072]
["Auburn","n/a",185382,203337,101762,79866]
["Avenal","n/a","n/a","n/a",80022,64334]
["Benicia","n/a","n/a","n/a","n/a",88637]
["Biggs","n/a",109341,121739,62038,46427]
["Bishop","n/a","n/a","n/a",67406,49716]
["Blue Lake","n/a",105521,117957,59891,45513]
["Brawley","n/a","n/a","n/a","n/a",86261]
["Butte County","n/a","n/a","n/a",296625,189136]
["Calaveras County","n/a","n/a","n/a","n/a",130115]
["Calexico","n/a",307951,284935,140413,104899]
["Calimesa","n/a",138507,156324,78680,55015]
["Calipatria","n/a","n/a","n/a",59623,48620]
["Calistoga","n/a","n/a","n/a",73848,53005]
["Capitola","n/a","n/a","n/a",110351,80414]
["Carmel-by-the-Sea","n/a","n/a","n/a",69822,51178]
["Chowchilla","n/a","n/a","n/a",88879,64334]
["Clearlake","n/a","n/a","n/a",107130,86078]
["Coalinga","n/a","n/a","n/a","n/a",71095]
["Colfax","n/a",113855,125522,63380,47706]
["Colusa","n/a",135035,161187,81900,56294]
["Colusa County","n/a",136077,152541,80558,59218]
["Corcoran","n/a","n/a","n/a",94784,67623]
["Corning","n/a",143368,150380,70896,59401]
["Crescent City","n/a","n/a","n/a","n/a",56111]
["Del Norte County","n/a","n/a","n/a",115988,78039]
["Dinuba","n/a","n/a","n/a",113304,82424]
["Dixon","n/a",189896,194691,92100,80597]
["Dorris","n/a","n/a","n/a",59354,44600]
["Dos Palos","n/a",120799,143355,72238,54467]
["Dunsmuir","n/a","n/a","n/a",62307,47889]
["El Centro (Colonia Only)","n/a","n/a","n/a","n/a",102524]
["El Dorado County","n/a","n/a","n/a","n/a",337874]
["Etna","n/a","n/a","n/a",56080,42919]
["Eureka","n/a","n/a",346539,167253,117690]
["Exeter","n/a","n/a","n/a",78411,52640]
["Farmersville","n/a","n/a","n/a",86463,64700]
["Ferndale","n/a",108994,121739,60965,45148]
["Firebaugh","n/a",144410,159566,74922,56111]
["Fort Bragg","n/a","n/a","n/a",75995,59949]
["Fort Jones","n/a","n/a","n/a",58281,44600]
["Fortuna","n/a",171840,171995,83242,66527]
["Fowler","n/a","n/a","n/a",66064,50630]
["Glenn County","n/a","n/a",201716,98005,71643]
["Grass Valley","n/a","n/a","n/a",117330,91560]
["Greenfield","n/a","n/a","n/a",109815,80049]
["Gridley","n/a",144410,143895,73848,51543]
["Grover Beach","n/a","n/a","n/a","n/a",73836]
["Guadalupe","n/a",160035,166051,78680,55198]
["Gustine","n/a","n/a","n/a",73848,60497]
["Hidden Hills","n/a",111077,124982,62844,46975]
["Hollister","n/a","n/a","n/a",147123,110381]
["Holtville","n/a","n/a","n/a",61770,45148]
["Humboldt County","n/a","n/a","n/a","n/a",207408]
["Huron","n/a","n/a","n/a",67138,50264]
["Imperial","n/a","n/a","n/a","n/a",72922]
["Imperial County","n/a",260034,311954,161080,109102]
["Indian Wells","n/a",135730,163889,78948,59035]
["Industry","n/a",101632,110824,55865,43138]
["Inyo County","n/a","n/a","n/a",109009,78769]
["Ione","n/a",118716,141734,70359,57939]
["Jackson","n/a",133299,143355,73311,51909]
["King City","n/a","n/a","n/a","n/a",60131]
["Kings County","n/a","n/a","n/a",148733,110016]
["Lake County","n/a","n/a","n/a",213687,152225]
["Lakeport","n/a","n/a","n/a",77874,54102]
["Lassen County","n/a","n/a","n/a","n/a",70912]
["Lemoore","n/a",217326,237381,130213,89002]
["Lincoln","n/a",314201,344377,164032,116045]
["Lindsay","n/a","n/a","n/a",89953,65430]
["Live Oak","n/a",132952,156324,77606,59035]
["Livingston","n/a","n/a","n/a",93442,67989]
["Loomis","n/a",123577,147678,78411,65248]
["Los Banos","n/a","n/a","n/a",131824,103620]
["Loyalton","n/a",105521,116336,58012,43869]
["Madera County","n/a","n/a","n/a",241065,187126]
["Mammoth Lakes","n/a","n/a","n/a",74922,62141]
["Maricopa","n/a",105869,116336,58549,46610]
["Marina","n/a","n/a","n/a",112230,81510]
["Mariposa County","n/a","n/a","n/a","n/a",87540]
["Marysville","n/a","n/a","n/a","n/a",66892]
["McFarland","n/a","n/a","n/a",90758,65248]
["Mendocino County","n/a","n/a","n/a",293672,203608]
["Merced County","n/a","n/a","n/a",335007,233721]
["Modoc County","n/a",120105,146597,68480,51361]
["Mono County","n/a","n/a","n/a","n/a",57573]
["Montague","n/a","n/a","n/a",60965,44600]
["Mount Shasta","n/a","n/a","n/a",74117,55746]
["Napa County","n/a",220451,261158,128335,94849]
["Nevada City","n/a","n/a","n/a",70896,53919]
["Nevada County","n/a","n/a","n/a",281594,192790]
["Orange Cove","n/a","n/a","n/a",70896,54102]
["Orland","n/a","n/a",143355,78680,64517]
["Oroville","n/a","n/a","n/a","n/a",83338]
["Pacific Grove","n/a","n/a","n/a",99615,74567]
["Palos Verdes Estates","n/a",157257,170914,87805,65796]
["Parlier","n/a","n/a","n/a",87805,68354]
["Pismo Beach","n/a","n/a","n/a",93442,69268]
["Placer County","n/a","n/a","n/a",385467,247060]
["Placerville","n/a","n/a","n/a",101494,69268]
["Plumas County","n/a",187118,217387,104983,76029]
["Plymouth","n/a",104757,116876,58549,44783]
["Point Arena","n/a","n/a","n/a",56670,43101]
["Portola","n/a",119757,120659,62038,47158]
["Rancho Mirage","n/a","n/a","n/a","n/a",103803]
["Red Bluff","n/a","n/a","n/a",100152,69085]
["Rio Dell","n/a",118716,141193,72506,55563]
["Rio Vista","n/a",149271,157945,87537,61411]
["Riverbank","n/a","n/a","n/a",113572,79135]
["San Benito County","n/a","n/a","n/a",112767,76942]
["San Joaquin","n/a",123924,128764,65528,49716]
["San Juan Bautista","n/a","n/a","n/a",63917,48437]
["San Juan Capistrano","n/a","n/a","n/a",154638,108371]
["Sand City","n/a","n/a","n/a",56885,43284]
["Santa Cruz County","n/a","n/a","n/a",480214,332575]
["Scotts Valley","n/a","n/a","n/a","n/a",76211]
["Shasta County","n/a","n/a","n/a",267637,190232]
["Shasta Lake","n/a","n/a","n/a","n/a",68354]
["Sierra County","n/a","n/a",124441,63649,51361]
["Siskiyou County","n/a","n/a","n/a",127046,85384]
["Solano County","n/a","n/a","n/a","n/a",82789]
["Soledad","n/a","n/a","n/a",94247,65065]
["Sonora","n/a","n/a","n/a",76801,53736]
["South Lake Tahoe","n/a","n/a","n/a","n/a",117142]
["St. Helena","n/a","n/a","n/a",81364,63969]
["Suisun City","n/a",222187,257916,124040,85165]
["Susanville","n/a","n/a","n/a",76801,59583]
["Sutter County","n/a","n/a","n/a",111157,76942]
["Sutter Creek","n/a",121841,128764,64991,52092]
["Taft","n/a",140591,136330,72775,58487]
["Tehama","n/a","n/a","n/a",56348,43467]
["Tehama County","n/a","n/a","n/a",212668,148059]
["Trinidad","n/a",101702,111256,55865,42773]
["Trinity County","n/a","n/a","n/a","n/a",82607]
["Truckee","n/a","n/a","n/a",96126,68354]
["Tulare County","n/a","n/a","n/a",486656,711731]
["Tulelake","n/a","n/a","n/a",58549,45148]
["Tuolumne County","n/a","n/a","n/a",228987,161727]
["Ukiah","n/a","n/a","n/a",100152,70547]
["Vernon","n/a",100591,111472,55865,43503]
["Wasco","n/a","n/a","n/a","n/a",84069]
["Weed","n/a","n/a","n/a",65528,48437]
["Westmorland","n/a",113507,117957,59086,44234]
["Wheatland","n/a",110035,123361,62575,47158]
["Williams","n/a",126355,135249,64186,48437]
["Willits","n/a","n/a","n/a",69017,50630]
["Willows","n/a","n/a",138491,74653,59766]
["Winters","n/a",136077,177399,86195,59401]
["Woodlake","n/a","n/a","n/a",75995,57208]
["Yolo County","n/a","n/a","n/a","n/a",395616]
["Yountville","n/a","n/a","n/a",64722,53371]
["Yreka","n/a","n/a","n/a",79216,56111]
["Yuba County","n/a","n/a","n/a","n/a",188770]
["Non-Entitlement Total",{"$f":"SUBTOTAL(109,B192:B354)","v":0},{"$f":"SUBTOTAL(109,C192:C354)","v":7778246},{"$f":"SUBTOTAL(109,D192:D354)","v":9559725},{"$f":"SUBTOTAL(109,E192:E354)","v":14433059},{"$f":"SUBTOTAL(109,F192:F354)","v":13824793}]